Cogmind - Beta 17.1 @@@ ROGUE MODE // 2026.09.23 @ 12:56:06 Player: the Result: Core destroyed Performance ------------- Evolutions (8) 4000 Regions Visited (28) 5600 Robots Destroyed (317) 1585 Value Destroyed (14754) 14754 Prototype IDs (130) 2600 Alien Tech Used (7) 1400 Bonus (6066) 6066 TOTAL SCORE: 36005 Bonus ------- High Alert Combat Kills 1046 Follower Combat Kills 1986 Network Hubs Disabled 600 Registered with UFD 300 Met Optimus in HQ 500 Met Zhirov 300 MAIN.C Attacked Proxy Base 500 Built Enhanced Grunts 300 Met R17 at Cetus 500 Met R17 at Research 2000 Met Optimus at Protoforge 1000 Friendly Fire -2966 Cogmind --------- Core Integrity 0/1450 Matter 154/300 Energy 900/900 System Corruption 34% Temperature Cool (12) Movement Walking (80) Location -2/Protoforge Parts ------- > --- POWER (3) -------- (None) > --- PROPULSION (6) --- Experimental VSS Leg Experimental VSS Leg Experimental VSS Leg > --- UTILITY (12) ----- Concept Chromion Battery Spectral Analyzer Advanced Melee Analysis Suite Experimental Core Analyzer Experimental Core Analyzer Experimental Armor Integrity Analyzer Advanced Weapon Cycler Concept Core Shell Experimental EM Shield Concept Antimissile System System Mapper > --- WEAPON (3) ------- Perforator Nanosword > --- INVENTORY (5) ---- Concept Core Shell Concept Core Shell Compact HERF Cannon Z-bomb Delivery System Peak State ------------ > --- POWER ------------ Quantum Reactor Quantum Reactor Light Quantum Reactor > --- PROPULSION ------- Enhanced Biometal Leg Enhanced Biometal Leg Experimental Biometal Leg Myomer Exoskeleton > --- UTILITY ---------- Large Storage Unit Spectral Analyzer Experimental Signal Interpreter Core Analyzer Nanoactuators Nanoactuators Experimental Transmission Jammer Medium Regenerative Plating Experimental EM Shield Advanced Force Field Advanced Hacking Suite System Mapper > --- WEAPON ----------- Nanosword Nanosword Nanosword > --- INVENTORY -------- Quantum Reactor Enhanced Biometal Leg Centrium Leg Deep Structural Scanner Plexus Tether Experimental Sensor Array Precision Matter Filter Advanced Weapon Cycler Dimensional Node Initializer Supercharged TR Terrabomb Compact HERF Cannon Perforator Z-bomb Delivery System [Rating: 222] Favorites ----------- Power Quantum Reactor Engine Deuterium Engine Power Core Light Fission Core Reactor Quantum Reactor Propulsion Enhanced Biometal Leg Treads Light Treads Leg Enhanced Biometal Leg Wheel Armored Wheel Hover Unit Aerolev Unit Utility Large Storage Unit Device Experimental Sensor Array Storage Large Storage Unit Processor Core Analyzer Hackware Improved Hacking Suite Protection Medium Regenerative Plating Weapon Enhanced Autogun Energy Gun Medium Laser Energy Cannon Cooled Particle Cannon Ballistic Gun Enhanced Autogun Ballistic Cannon Perforator Launcher Advanced EMP Blaster Special Weapon Mining Laser Impact Weapon Thunder Hammer Slashing Weapon Power Sword Piercing Weapon Heavy Pick Build | -11 -10 -10 -10 -9 -8 -8 -8 -8 -6 -6 -6 -6 -5 -5 -5 -5 -5 -5 -4 -4 -4 -4 -3 -3 -3 -2 -2 -2 ------- Run | Yrd Mat Min Exi Min Mat Sto Rec Scr Fac Low Low Zio Pro Fac Ext Cet Arc Hub Fac Upp Upp Zhi Pro Res Qua Res Tes Frg Slots Evolved 16 | . . . . . 4 . . . 4 . . . . 2 . . . . 2 . . . . 2 . 2 . . Power 2 | . . . . . . . . . 1 . . . . . . . . . . . . . . 1 . . . . Propulsion 4 | . . . . . 2 . . . . . . . . 1 . . . . . . . . . . . 1 . . Utility 10 | . . . . . 2 . . . 3 . . . . 1 . . . . 2 . . . . 1 . 1 . . Weapon . | . . . . . . . . . . . . . . . . . . . . . . . . . . . . . Parts Attached 268 | 7 3 4 . 6 42 26 . 6 22 1 1 4 . 1 19 9 5 29 10 1 1 6 5 9 5 5 19 22 Power 31 | 1 . 1 . 1 6 1 . . 2 . . . . 1 2 3 . 4 . 1 . 1 . 1 . 3 1 2 Engine 9 | 1 . . . 1 4 1 . . . . . . . 1 1 . . . . . . . . . . . . . Core 7 | . . 1 . . 2 . . . 2 . . . . . 1 . . 1 . . . . . . . . . . Reactor 15 | . . . . . . . . . . . . . . . . 3 . 3 . 1 . 1 . 1 . 3 1 2 Propulsion 72 | 2 . . . 1 15 7 . 3 5 . . . . . 11 . 1 13 2 . . 3 . . . . 4 5 Treads 23 | 2 . . . 1 14 6 . . . . . . . . . . . . . . . . . . . . . . Leg 33 | . . . . . . . . . . . . . . . 7 . 1 11 2 . . 3 . . . . 4 5 Wheel 6 | . . . . . . 1 . . . . . . . . 3 . . 2 . . . . . . . . . . Hover 10 | . . . . . 1 . . 3 5 . . . . . 1 . . . . . . . . . . . . . Flight . | . . . . . . . . . . . . . . . . . . . . . . . . . . . . . Utility 103 | 2 2 1 . 2 13 6 . 1 9 1 . . . . 5 6 3 9 7 . 1 2 4 5 1 2 8 13 Device 42 | 1 . 1 . 1 5 1 . . 1 1 . . . . 1 1 2 5 4 . 1 1 4 2 . 2 5 3 Storage 10 | 1 1 . . . 1 1 . . . . . . . . . 1 . . 1 . . . . 2 . . 1 1 Processor 21 | . . . . . 1 2 . 1 3 . . . . . 2 . . 2 1 . . . . 1 1 . 1 6 Hackware 8 | . . . . . . . . . 3 . . . . . . 1 1 1 1 . . . . . . . 1 . Protection 22 | . 1 . . 1 6 2 . . 2 . . . . . 2 3 . 1 . . . 1 . . . . . 3 Artifact . | . . . . . . . . . . . . . . . . . . . . . . . . . . . . . Weapon 62 | 2 1 2 . 2 8 12 . 2 6 . 1 4 . . 1 . 1 3 1 . . . 1 3 4 . 6 2 Energy Gun 8 | 1 1 1 . 1 . 4 . . . . . . . . . . . . . . . . . . . . . . Energy Cannon 6 | . . . . . 1 1 . . 1 . . . . . . . . 1 . . . . . . 1 . 1 . Ballistic Gun 12 | 1 . . . . 3 5 . . . . . . . . . . 1 . . . . . . . . . . 2 Ballistic Cannon 4 | . . . . . 1 . . . . . . . . . . . . . . . . . . 1 . . 2 . Launcher 8 | . . . . 1 1 1 . . . . . 2 . . . . . . 1 . . . . . 1 . 1 . Special Weapon 3 | . . 1 . . . . . 1 . . . 1 . . . . . . . . . . . . . . . . Impact Weapon 4 | . . . . . 1 1 . . 1 . . . . . . . . 1 . . . . . . . . . . Slashing Weapon 15 | . . . . . 1 . . . 4 . 1 . . . 1 . . 1 . . . . 1 2 2 . 2 . Piercing Weapon 2 | . . . . . . . . 1 . . . 1 . . . . . . . . . . . . . . . . Special Melee Weapon . | . . . . . . . . . . . . . . . . . . . . . . . . . . . . . Unidentified Prototypes 65 | . . . . 1 3 5 . . 1 1 . 2 . . . 5 1 8 3 . . 5 . 4 4 1 13 8 Corrupted Parts 7 | . . . . . . . . . . . . . . . 1 . 1 5 . . . . . . . . . . System Corruption 46 | . . . . . . . . . . . . . . . 6 . 5 35 . . . . . . . . . . Parts Lost 48 | . . 1 . 1 3 . . . 2 . . . . . 4 . 1 8 . 1 . . . . . . 1 26 Power 10 | . . . . . 1 . . . 2 . . . . . 1 . . . . 1 . . . . . . . 5 Propulsion 19 | . . . . 1 1 . . . . . . . . . 3 . 1 6 . . . . . . . . . 7 Utility 16 | . . . . . 1 . . . . . . . . . . . . 1 . . . . . . . . 1 13 Weapon 3 | . . 1 . . . . . . . . . . . . . . . 1 . . . . . . . . . 1 Highest Loss Streak 15 | . . 1 . 1 2 . . . 2 . . . . . 2 . 1 7 . 1 . . . . . . 1 15 To Critical Strikes 3 | . . . . . . . . . . . . . . . 1 . . . . . . . . . . . . 2 Average Backups 15 | 3 8 14 14 14 17 21 25 22 14 13 14 14 14 12 13 13 13 13 12 12 13 13 13 14 14 14 14 10 Power . | 1 1 2 2 1 1 . . . . 1 1 1 1 1 . . . . 1 . . . . . . . 1 . Propulsion 2 | 1 . 3 3 3 2 3 7 3 2 2 2 2 2 1 . . . 1 2 2 2 2 2 2 2 1 2 1 Utility 8 | . 4 6 7 7 10 12 13 13 5 6 7 7 7 6 8 8 9 9 7 8 9 9 9 9 9 7 5 3 Weapon 3 | . 2 2 2 2 3 5 5 4 5 4 4 4 4 4 4 3 3 2 2 2 2 1 1 1 1 2 2 2 Tool/Special . | . . . . . . . . . . . . . . . . . . . . . . . . . . . . . Unused Backups 34 | . . 1 . . 4 3 . 3 4 . . . . . 1 3 2 5 . . . 1 1 . 3 1 . 2 Power 4 | . . . . . 1 2 . . . . . . . . . . 1 . . . . . . . . . . . Propulsion 3 | . . . . . . . . 1 . . . . . . . 1 . 1 . . . . . . . . . . Utility 21 | . . 1 . . 3 1 . . 2 . . . . . 1 2 1 3 . . . 1 1 . 2 1 . 2 Weapon 3 | . . . . . . . . 2 . . . . . . . . . 1 . . . . . . . . . . Tool/Special 3 | . . . . . . . . . 2 . . . . . . . . . . . . . . . 1 . . . Average Slot Usage (%) 95 | . 100 99 100 99 99 99 100 91 89 84 86 87 86 91 93 100 99 96 99 99 100 97 99 97 99 99 93 73 Engine 3 | . 14 2 . 13 5 6 9 8 10 . . . . 3 1 . . . . . . . . . . . . . Core 2 | . . 11 14 . 3 2 . . . 6 6 6 6 5 6 4 . . . . . . . . . . . . Reactor 4 | . . . . . . . . . . . . . . . . 5 11 10 10 9 10 10 10 11 13 12 12 7 Treads 11 | . 28 28 28 27 35 32 27 10 . . . . . . . . . . . . . . . . . . . . Leg 9 | . . . . . . . . . . . . . . . 11 27 26 24 25 25 25 25 25 22 22 25 18 13 Wheel 1 | . . . . . . 3 9 9 . . . . . . . . . . . . . . . . . . . . Hover 4 | . . . . . . . . 16 20 19 18 18 18 22 12 . . . . . . . . . . . . . Device 10 | . 12 13 14 13 13 8 4 4 12 6 5 5 5 10 3 . 3 6 12 10 11 14 15 13 13 15 15 12 Storage 7 | . 14 14 14 14 9 9 9 8 6 6 6 6 6 5 5 5 5 5 5 5 5 5 5 4 4 4 4 3 Processor 12 | . . . . . 4 7 9 10 14 19 18 18 18 16 21 19 16 16 16 20 18 15 15 17 18 16 15 14 Hackware 5 | . . . . . . . . . 11 12 12 12 12 11 11 11 11 8 10 10 10 10 10 9 9 8 8 5 Protection 5 | . 1 . . . 9 11 13 7 . . . . . . 2 7 7 5 5 5 5 5 4 4 4 4 3 2 Energy Gun 2 | . 14 16 28 27 1 . . . . . . . . . . . . . . . . . . . . . . . Ballistic Gun 5 | . 14 10 . . 13 16 18 13 . . . . . . . . 3 1 . . . . . . . . . . Impact Weapon 1 | . . . . . . . . . . . . . . . . . . 3 4 5 5 5 5 3 2 . . . Slashing Weapon 5 | . . . . . . . . . 9 12 17 14 11 11 11 11 7 7 8 10 10 7 10 8 10 12 11 8 Peak Build Rating 222 | 7 8 10 10 16 36 45 45 50 74 70 75 77 77 85 89 108 111 144 159 146 143 152 147 165 172 191 220 222 Average Rating 87 | 4 7 9 10 9 26 41 42 41 63 67 73 75 75 84 82 97 108 115 146 143 142 137 142 158 164 187 202 178 On Entrance 87 | . 7 8 10 10 9 36 45 39 47 70 70 70 76 76 85 86 108 110 131 144 144 142 140 142 160 170 191 217 Avg Prop Armor Cover (%) 15 | . . . . . . 18 17 14 . . . . . . 16 . . 4 . . . . . . . . . . Naked Turns . | . . . . . . . . . . . . . . . . . . . . . . . . . . . . . Heaviest Build 123 | 14 31 31 30 34 84 123 123 123 114 34 44 37 39 39 57 88 88 89 99 81 93 93 94 115 112 112 111 109 Greatest Support 180 | 40 40 40 40 40 82 84 12 24 39 39 39 39 39 47 90 90 90 150 150 150 150 150 150 150 150 180 180 178 Greatest Overweight (x) 28 | . . . . 1 1 10 10 10 3 . 1 . . . 2 . 1 28 . . . . . . . . . 1 Average Overweight (x) 1 | . . . . . . 3 9 6 . . . . . . . . . . . . . . . . . . . . Largest Inventory Capacity 25 | 8 15 15 15 15 20 25 25 25 25 15 15 15 15 15 15 15 15 15 15 15 15 15 15 15 15 15 15 15 Average Capacity 17 | 6 13 15 15 15 19 21 25 23 15 15 15 15 15 15 15 15 15 15 15 15 15 15 15 15 15 15 15 11 Most Carried 25 | 5 15 15 15 15 20 25 25 25 24 15 15 15 15 15 15 15 15 15 15 15 15 15 15 15 15 15 15 15 Average Carried 16 | 3 8 14 14 14 17 21 25 23 14 14 15 14 15 13 14 14 14 14 14 14 15 14 14 14 14 14 14 10 Final Capacity 25 | 8 15 15 15 15 20 25 25 25 15 15 15 15 15 15 15 15 15 15 15 15 15 15 15 15 15 15 15 5 Final Carried 25 | 3 15 14 15 12 20 25 25 25 15 15 15 15 15 15 15 15 15 15 15 15 15 15 15 15 15 15 14 4 Class Distribution -------------------- 28% | Scavenger-Gladiator 21% | Mutant 16% | Hacker-Gladiator 13% | Commander-Mutant 10% | Scavenger-Mutant 3% | Hacker-Scout Dominant Class ---------------- Mutant | -10/Materials Mutant | -10/Mines Mutant | -10/Exiles Mutant | -9/Mines Scavenger-Mutant | -8/Materials Mutant | -8/Storage Commander-Mutant | -8/Recycling Commander-Mutant | -8/Scraptown Hacker-Scout | -6/Factory Hacker-Gladiator | -6/Lower Caves Hacker-Gladiator | -6/Lower Caves Hacker-Gladiator | -6/Zion Hacker-Gladiator | -5/Proximity Caves Hacker-Scout | -5/Factory Scavenger-Gladiator | -5/Extension Scavenger-Gladiator | -5/Cetus Scavenger-Mutant | -5/Archives Scavenger-Gladiator | -5/Hub_04(d) Scavenger-Gladiator | -4/Factory Scavenger-Gladiator | -4/Upper Caves Scavenger-Gladiator | -4/Upper Caves Hacker-Gladiator | -4/Zhirov Scavenger-Gladiator | -3/Proximity Caves Scavenger-Gladiator | -3/Research Scavenger-Gladiator | -3/Quarantine Scavenger-Gladiator | -2/Research Hacker-Gladiator | -2/Testing Hacker-Gladiator | -2/Protoforge Resources | -11 -10 -10 -10 -9 -8 -8 -8 -8 -6 -6 -6 -6 -5 -5 -5 -5 -5 -5 -4 -4 -4 -4 -3 -3 -3 -2 -2 -2 ----------- Run | Yrd Mat Min Exi Min Mat Sto Rec Scr Fac Low Low Zio Pro Fac Ext Cet Arc Hub Fac Upp Upp Zhi Pro Res Qua Res Tes Frg Matter Collected 11385 | 291 25 141 . 125 2012 1841 290 118 430 91 51 62 167 . 721 222 97 569 800 91 50 112 238 420 634 215 767 805 Remotely . | . . . . . . . . . . . . . . . . . . . . . . . . . . . . . Salvage Created 15805 | 185 112 367 . 30 2402 1699 309 . 448 . . . 20 . 955 142 271 1132 1793 195 27 112 121 1061 1221 285 1486 1432 Parts 791 | 12 7 26 . 4 129 87 12 . 27 . . . 8 . 39 8 25 50 74 3 . 2 7 41 64 16 81 69 Haulers Intercepted 21 | . 1 . . . 3 6 . . 1 . . . . . . . . 1 2 . . . . 4 . 1 2 . Recyclers Shooed 6 | . 1 . . . 1 3 1 . . . . . . . . . . . . . . . . . . . . . Parts Field Recycled . | . . . . . . . . . . . . . . . . . . . . . . . . . . . . . Retrieved Matter . | . . . . . . . . . . . . . . . . . . . . . . . . . . . . . Parts Self-Destructed 32 | . . . . . . . . . . . . . 6 . . . . . . . . 2 24 . . . . . Prevented 72 | . . . . . . . . . . . . . . . . . . . . 2 2 . 68 . . . . . Parts Restored . | . . . . . . . . . . . . . . . . . . . . . . . . . . . . . Kills | -11 -10 -10 -10 -9 -8 -8 -8 -8 -6 -6 -6 -6 -5 -5 -5 -5 -5 -5 -4 -4 -4 -4 -3 -3 -3 -2 -2 -2 ------- Run | Yrd Mat Min Exi Min Mat Sto Rec Scr Fac Low Low Zio Pro Fac Ext Cet Arc Hub Fac Upp Upp Zhi Pro Res Qua Res Tes Frg Combat Hostiles Destroyed 218 | . 3 10 . 4 49 22 2 . 7 . . . 5 . 9 1 . 14 22 3 . . 2 8 17 2 16 22 Melee 81 | . . . . . . . . . 6 . . . . . 6 . . 9 10 1 . . 2 4 15 2 16 10 Guns 75 | . 3 10 . . 36 22 2 . . . . . . . . . . . . . . . . . . . . 2 Cannons 22 | . . . . . 3 . . . 1 . . . . . . . . . 5 . . . . 3 . . . 10 AOE 25 | . . . . 4 10 . . . . . . . 5 . 3 . . . 3 . . . . . . . . . Classes Destroyed 25 | 2 2 2 . 1 7 1 . . 2 . . . 1 . 2 . . 1 . . . . . . . . 1 3 Worker 14 | . . . . . 5 3 . . 1 . . . . . . . . 2 2 . . . . 1 . . . . Builder 10 | . . . . . 3 . . . 2 . . . . . 2 . . . 1 . . . . 1 . 1 . . Tunneler 10 | 5 . 3 . . 2 . . . . . . . . . . . . . . . . . . . . . . . Hauler 21 | . 1 . . . 3 6 . . 1 . . . . . . . . 1 2 . . . . 4 . 1 2 . Recycler 15 | 1 . . . . 2 4 3 . . . . . . . 3 . . . 2 . . . . . . . . . Mechanic 2 | . . . . . . 1 . . . . . . . . . . . . . . . . . 1 . . . . Operator 12 | . . . . . . . . . 1 . . . . . 1 . 8 . . . . . . . 1 . 1 . Drone 4 | . . . . . . . . . . . . . 1 . . . . . . . . . . . . . . 3 Watcher 13 | . . . . . 3 1 . . . . . . . . 1 . . 1 1 . . . . 2 2 1 1 . Swarmer 43 | . 3 3 . 3 14 3 . . 4 . . . 4 . . . . . 5 . . . . 3 . . . 1 Grunt 59 | . . 6 . . 21 11 . . . . . . . . 2 . . 2 6 2 . . . . 6 . 3 . Brawler 3 | . . . . . 2 . . . . . . . . . . . . . . . . . . . . . . 1 Duelist 4 | . . . . . 3 . . . . . . . . . . . . . . 1 . . . . . . . . Protector 1 | . . . . . . . . . . . . . . . . . . 1 . . . . . . . . . . Researcher 1 | . . . . . . . . . . . . . . . . . . . . . . . . . . . 1 . Sentry 30 | . . . . . 7 8 2 . 1 . . . . . 4 . . . 3 . . . . 3 . 1 . 1 Demolisher 1 | . . . . 1 . . . . . . . . . . . . . . . . . . . . . . . . Specialist 2 | . . . . . 2 . . . . . . . . . . . . . . . . . . . . . . . Hunter 13 | . . . . . . . . . . . . . . . 1 . . . 4 . . . . 2 . . 3 3 Programmer 35 | . . . . . . . . . 2 . . . . . . . . 2 4 . . . 2 . 11 1 9 4 Behemoth 1 | . . . . . . . . . . . . . . . 1 . . . . . . . . . . . . . Cetus Guard 1 | . . . . . . . . . . . . . . . . 1 . . . . . . . . . . . . Lightning 9 | . . . . . . . . . . . . . . . . . . 9 . . . . . . . . . . Hotshot 2 | . . . . . . . . . . . . . . . . . . . . . . . . . . . . 2 Decapitator 2 | . . . . . . . . . . . . . . . . . . . . . . . . . . . . 2 Executioner 3 | . . . . . . . . . . . . . . . . . . . . . . . . . . . . 3 Alpha 7 2 | . . . . . . . . . . . . . . . . . . . . . . . . . . . . 2 Protovariant X 1 | . . . . . . . . . . . . . . . . . . . . . . . . . . . 1 . Decomposer 1 | . . . . . . . . . . . . . . . . . . . . . 1 . . . . . . . Assembled 1 | . . 1 . . . . . . . . . . . . . . . . . . . . . . . . . . Thug 1 | . . . . . . . . . . . . . . . 1 . . . . . . . . . . . . . Butcher 1 | . . . . . . . . . . . . . . . 1 . . . . . . . . . . . . . Best Kill Streak 11 | 4 3 2 . 3 11 7 1 . 3 . . . 4 . 5 1 7 4 6 2 . . 2 3 5 1 4 5 Combat Bots Only 7 | . 3 2 . 3 7 6 1 . 3 . . . 4 . 3 1 . 4 5 2 . . 2 3 3 1 3 5 Max Kills in Single Turn 4 | 1 1 1 . 3 3 2 1 . 1 . . . 4 . 2 1 1 1 3 1 1 . 1 1 1 1 1 2 Gunslinging 1 | . . . . . 1 1 . . . . . . . . . . . . . . . . . . . . . . Exploded 4 | . . . . 3 3 . . . . . . . 4 . 2 . . . 2 . . . . . . . . . Melee 1 | . . . . . . . . . 1 . . . . . 1 . . 1 1 1 . . 1 1 1 1 1 1 Uniques/NPCs Destroyed 1 | . . . . . . . . . . . . . . . . 1 . . . . . . . . . . . . A7 (-5/Cetus) Combat | -11 -10 -10 -10 -9 -8 -8 -8 -8 -6 -6 -6 -6 -5 -5 -5 -5 -5 -5 -4 -4 -4 -4 -3 -3 -3 -2 -2 -2 -------- Run | Yrd Mat Min Exi Min Mat Sto Rec Scr Fac Low Low Zio Pro Fac Ext Cet Arc Hub Fac Upp Upp Zhi Pro Res Qua Res Tes Frg Hostile Shots Fired 1300 | . 24 49 . 8 258 84 16 . 48 . 3 . 2 . 55 8 3 116 107 22 . . 18 13 73 28 138 227 Missed 382 | . 6 17 . 2 57 25 3 . 15 . 3 . . . 13 3 . 19 53 3 . . 7 8 29 13 51 55 Hits 918 | . 18 32 . 6 201 59 13 . 33 . . . 2 . 42 5 3 97 54 19 . . 11 5 44 15 87 172 Melee 19 | . . . . . 8 . . . . . . . . . . . . . . 2 . . . . . . . 9 Projectile 899 | . 18 32 . 6 193 59 13 . 33 . . . 2 . 42 5 3 97 54 17 . . 11 5 44 15 87 163 AOE 6 | . . . . 4 . . . . . . . . . . . . . . . . . . . . . . . 2 Critical Strikes 67 | . . . . . 10 2 . . . . . . . . 4 1 . 14 4 2 . . 2 1 3 . 5 19 Part Disruptions 3 | . . . . . . . . . . . . . . . . . . 2 . . . . . . 1 . . . Damage Taken 17709 | . 153 368 . 186 2720 901 167 . 724 . . . 79 . 1002 285 79 2189 790 402 . . 96 133 215 116 864 6240 Core 3088 | . 40 43 . . 406 38 28 . 178 . . . 26 . 123 24 . 372 143 51 . . 30 . 28 . 87 1471 Absorbed by Shields 1850 | . . . . . . . . . . . . . . . 44 26 . . . . . . 10 48 223 120 904 475 Redirected to Shielding 159 | . . . . . . . . . . . . . . . . . . . . . . . . . . . . 159 Ignored by Resistances 4077 | . . . . . 306 36 34 . . . . . . . . . . 1614 348 . . . 196 . 553 106 411 473 Regen/Repaired (Parts) 1368 | . . . . . 210 11 . . . . . . . . . . . 416 59 55 . . 50 26 85 46 350 60 Core Remaining (%) 67 | 100 . . . 66 . . . 14 . . . . 76 . . . . 48 . . . . 80 . 90 . . . Volleys Fired 521 | 21 15 47 . 3 212 125 10 1 9 . 6 . 3 . 5 4 . . 24 . . . . 13 4 . 3 16 Largest 2 | 2 2 2 . 2 2 2 2 1 1 . 1 . 1 . 1 1 . . 1 . . . . 1 1 . 1 2 Hottest 150 | 60 70 150 . 100 110 86 50 . 30 . 30 . 50 . 50 30 . . 70 . . . . 70 94 . 54 100 Shots Fired 912 | 42 30 91 . 4 390 244 20 1 9 . 6 . 3 . 5 4 1 . 24 . . . . 13 4 . 3 18 Gun 761 | 42 30 88 . 2 333 240 20 . . . . . . . . . . . . . . . . . . . . 6 Cannon 111 | . . . . . 35 . . . 9 . 6 . 1 . 1 4 1 . 22 . . . . 13 4 . 3 12 Launcher 21 | . . . . 2 10 4 . . . . . . 1 . 4 . . . . . . . . . . . . . Special 19 | . . 3 . . 12 . . 1 . . . . 1 . . . . . 2 . . . . . . . . . Kinetic 676 | 21 15 26 . . 339 234 20 . . . . . . . . . . . . . . . . . . . 3 18 Thermal 151 | . 15 65 . 2 41 6 . . 9 . 6 . 1 . 1 4 1 . . . . . . . . . . . Explosive 20 | . . . . 2 10 . . . . . . . 2 . 4 . . . 2 . . . . . . . . . Electromagnetic 64 | 21 . . . . . 4 . . . . . . . . . . . . 22 . . . . 13 4 . . . Robot Hit Streak 17 | 6 7 9 . 5 17 13 5 6 9 . . . . . . 10 . . 4 . . . . 10 11 . . 7 Robot Miss Streak 12 | 2 8 2 . 1 5 4 3 . . . . . . . . 2 1 . 3 . . . . 1 . . . 12 Penetration Max 2 | . . . . . . . . . . . . . . . . . . . 1 . . . . . . . . 2 Secondary Targets 10 | . 1 2 . . 4 3 . . . . . . . . . . . . . . . . . . . . . . Max Gunslinging Chain 1 | . 1 1 . . 1 1 . . . . . . . . . . . . . . . . . . . . . . Shots Hit Robots 1048 | 25 14 53 . 1 239 164 13 1 26 . 1 . . 1 30 14 14 85 64 10 1 4 9 33 59 17 92 78 Core Hits 501 | 11 6 26 . 3 116 61 5 . 11 . . . 4 . 51 5 8 29 36 3 . 1 4 19 22 6 30 44 Critical Kills 14 | . 1 . . . . 1 . . . . . . . . . 1 . . . . . . . 1 . . . 10 Critical Parts Destroyed 30 | . . . . . 1 2 . . . . . . . . . . . 6 2 1 . . . 1 3 . . 14 Critical Strikes 114 | 1 1 3 . . 2 3 . . 1 . . . . . 1 3 . 15 14 1 . . 2 6 9 1 20 31 Burn 4 | . . 3 . . 1 . . . . . . . . . . . . . . . . . . . . . . . Meltdown 1 | . . . . . . . . . . . . . . . . 1 . . . . . . . . . . . . Destroy 30 | . 1 . . . 1 3 . . . . . . . . . . . . . . . . . . . . . 25 Corrupt 8 | 1 . . . . . . . . . . . . . . . . . . 5 . . . . 2 . . . . Smash 14 | . . . . . . . . . . . . . . . . . . 6 2 1 . . . 2 3 . . . Sever 56 | . . . . . . . . . 1 . . . . . . 2 . 9 7 . . . 2 2 6 1 20 6 Impale 1 | . . . . . . . . . . . . . . . 1 . . . . . . . . . . . . . Melee Attacks 843 | . . . . . 3 5 . . 86 1 2 . 14 17 42 13 16 116 75 17 2 4 26 44 91 29 136 104 Impact 88 | . . . . . 1 4 . . . . . . . . . . . 28 15 9 . . 10 13 8 . . . Slashing 697 | . . . . . 2 1 . . 63 1 2 . 14 1 23 13 16 88 60 8 2 4 16 31 83 29 136 104 Piercing 58 | . . . . . . . . . 23 . . . . 16 19 . . . . . . . . . . . . . Sneak Attacks 60 | . . . . . . . . . 5 . 1 . . . 8 12 7 4 4 . 1 . . 8 1 4 3 2 Combat Hostiles 2 | . . . . . . . . . . . . . . . . . . . . . . . . . 1 1 . . Follow-up Attacks 108 | . . . . . . . . . 1 . . . . 1 6 1 1 24 11 2 . 1 2 3 13 4 25 13 Damage Inflicted 41503 | 279 161 656 . 174 5196 2939 251 . 1309 . 79 . 460 36 2717 829 1106 4282 3759 537 68 399 407 2160 3295 1279 5372 3753 Guns 8252 | 279 161 639 . 13 3862 2850 219 . . . . . . . . . . . . . . . . . . . . 229 Cannons 2241 | . . . . . 365 . . . 79 . . . . . . 79 . . 901 . . . . 622 54 . . 141 Explosions 3269 | . . . . 154 896 71 . . . . . . 460 . 1186 . . 43 394 . . . . . 65 . . . Melee 27510 | . . . . . . . . . 1230 . 79 . . 36 1531 750 1106 4239 2380 537 68 399 407 1538 3176 1279 5372 3383 Ramming 152 | . . 17 . 7 73 18 32 . . . . . . . . . . . 5 . . . . . . . . . Kinetic 7543 | 100 74 154 . . 3836 2790 219 . . . . . . . . . . . . . . . . . . . . 370 Thermal 1271 | . 87 485 . 13 391 72 . . 79 . . . . . . 79 . . . . . . . . 65 . . . Explosive 3090 | . . . . 154 896 . . . . . . . 460 . 1186 . . . 394 . . . . . . . . . Electromagnetic 1858 | 179 . . . . . 59 . . . . . . . . . . . 43 901 . . . . 622 54 . . . Impact 3179 | . . . . . . . . . . . . . . . . . . 1410 426 395 . . . 633 315 . . . Slashing 23590 | . . . . . . . . . 1230 . 79 . . . 747 750 1106 2829 2033 142 68 399 407 905 2861 1279 5372 3383 Piercing 820 | . . . . . . . . . . . . . . 36 784 . . . . . . . . . . . . . Highest Corruption 59 | . . . . . . 1 1 . 7 7 2 2 . . 6 4 9 59 . . . . . 2 3 1 1 34 Average Corruption 6 | . . . . . . 1 1 . 4 4 2 2 . . 5 4 3 20 . . . . . 2 2 1 1 17 Corruption Purged 15 | . . . . . . . . . . 5 . . . . 2 . 8 . . . . . . . . . . . Corruption Blocked . | . . . . . . . . . . . . . . . . . . . . . . . . . . . . . Effects 178 | . . . . . . 2 10 . 7 6 9 . . . 5 10 11 43 . . . . . 8 14 . 11 42 Message Errors 43 | . . . . . . 1 3 . 4 2 3 . . . . 4 2 8 . . . . . 4 . . 2 10 Matter Fused 43 | . . . . . . 1 2 . 2 2 2 . . . 2 3 4 10 . . . . . 1 5 . 5 4 Heat Flow Errors 26 | . . . . . . . 1 . 1 1 . . . . . . 1 8 . . . . . . 3 . 3 8 Energy Discharges 26 | . . . . . . . 2 . . . 1 . . . 1 2 1 6 . . . . . 3 3 . . 7 Parts Rejected 3 | . . . . . . . . . . . . . . . . . . 1 . . . . . . 1 . . 1 Parts Fused 2 | . . . . . . . . . . . . . . . . . 2 . . . . . . . . . . . Data Loss (minor) 20 | . . . . . . . 2 . . 1 3 . . . 1 . . 5 . . . . . . 1 . 1 6 Data Loss (major) 7 | . . . . . . . . . . . . . . . 1 . . 3 . . . . . . 1 . . 2 Misfires 1 | . . . . . . . . . . . . . . . . . 1 . . . . . . . . . . . Alerts 2 | . . . . . . . . . . . . . . . . 1 . 1 . . . . . . . . . . Misdirections 4 | . . . . . . . . . . . . . . . . . . 1 . . . . . . . . . 3 Weapon Failures 1 | . . . . . . . . . . . . . . . . . . . . . . . . . . . . 1 Overload Shots . | . . . . . . . . . . . . . . . . . . . . . . . . . . . . . Overflow Damage 2784 | . . . . 10 45 3 7 . 85 . 39 . 28 1 130 17 223 431 332 107 63 189 2 196 458 99 143 176 Projectiles 41 | . . . . . . . . . . . . . . . . . . . 41 . . . . . . . . . Explosions 150 | . . . . 10 45 3 . . . . . . 28 . 5 . . . 59 . . . . . . . . . Melee 2593 | . . . . . . . 7 . 85 . 39 . . 1 125 17 223 431 232 107 63 189 2 196 458 99 143 176 Knockbacks 17 | . . . . . . . 1 . . . . . . . . . . 7 . 1 . . . 4 1 . . 3 Impact 13 | . . . . . . . 1 . . . . . . . . . . 6 . 1 . . . 4 1 . . . Kinetic 3 | . . . . . . . . . . . . . . . . . . . . . . . . . . . . 3 Secondary 1 | . . . . . . . . . . . . . . . . . . 1 . . . . . . . . . . Self-Inflicted Damage 103 | . . . . 4 . . 16 . . . . . 28 . 28 . . 27 . . . . . . . . . . Shots 5 | . . . . 1 . . . . . . . . 1 . 2 . . 1 . . . . . . . . . . Rammed 18 | . . 4 . 2 8 3 1 . . . . . . . . . . . . . . . . . . . . . Targets Rammed 22 | . . 5 . 2 9 4 1 . . . . . . . . . . . 1 . . . . . . . . . Kicked 1 | . . . . . . . . . . . . . . . . . . . 1 . . . . . . . . . Crushed 3 | . . 1 . . 1 1 . . . . . . . . . . . . . . . . . . . . . . Highest Temperature 300 | 20 154 168 . 48 299 300 120 . 272 206 . . . . 1 1 219 282 170 27 . . . 104 239 . 277 207 Average Temperature 68 | 8 69 54 . 28 68 71 31 . 138 102 . . . . 1 1 96 104 59 15 . . . 35 105 . 88 82 Received Heat Transfer 2919 | . . 158 . . 1188 468 54 . 51 . . . 9 . 170 9 . 90 138 108 . . 7 4 34 12 28 391 Effects 7 | . . . . . 3 4 . . . . . . . . . . . . . . . . . . . . . . Interference 7 | . . . . . 3 4 . . . . . . . . . . . . . . . . . . . . . . Siege Activations . | . . . . . . . . . . . . . . . . . . . . . . . . . . . . . Martial Activations . | . . . . . . . . . . . . . . . . . . . . . . . . . . . . . Shielding Activations . | . . . . . . . . . . . . . . . . . . . . . . . . . . . . . Robots Disrupted . | . . . . . . . . . . . . . . . . . . . . . . . . . . . . . Combat Hostiles . | . . . . . . . . . . . . . . . . . . . . . . . . . . . . . Robots Corrupted 18 | . . . . . . . 1 . . . . . . . . . . 5 5 2 . . . 2 3 . . . Combat Hostiles 14 | . . . . . . . . . . . . . . . . . . 5 4 2 . . . 1 2 . . . Parts Fried 42 | 2 . . . . . . 3 . . . . . . . . . . 3 18 1 . . . 8 7 . . . Impact Corruptions 33 | . . . . . . . 1 . . . . . . . . . . 14 6 4 . . . 2 6 . . . Robots Melted 1 | . . . . . . . . . . . . . . . . 1 . . . . . . . . . . . . Combat Hostiles 1 | . . . . . . . . . . . . . . . . 1 . . . . . . . . . . . . Parts Melted 12 | . 2 5 . . . . . . 1 . . . . . 1 2 . . . . . . . . . . 1 . Heat Transferred 3269 | . 259 1665 . 37 925 161 . . 111 . . . . . . 111 . . . . . . . . . . . . Parts Sabotaged . | . . . . . . . . . . . . . . . . . . . . . . . . . . . . . Parts Stolen . | . . . . . . . . . . . . . . . . . . . . . . . . . . . . . Parts Stripped . | . . . . . . . . . . . . . . . . . . . . . . . . . . . . . Power Chain Reactions 3 | . . . . . . 2 . . . . . . . . . . . . . . . . . . 1 . . . Alert | -11 -10 -10 -10 -9 -8 -8 -8 -8 -6 -6 -6 -6 -5 -5 -5 -5 -5 -5 -4 -4 -4 -4 -3 -3 -3 -2 -2 -2 ------- Run | Yrd Mat Min Exi Min Mat Sto Rec Scr Fac Low Low Zio Pro Fac Ext Cet Arc Hub Fac Upp Upp Zhi Pro Res Qua Res Tes Frg Maximum Alert Level 3 | . . . . . 3 2 . . . . . . . . 1 . 1 3 3 . . . . . . . 1 . Low Security (%) 64 | 100 100 100 . 100 12 . 100 . 100 . . . . 100 94 100 95 11 . . . . . 100 100 100 95 100 Level 1 13 | . . . . . 20 64 . . . . . . . . 5 . 4 61 . . . . . . . . 4 . Level 2 16 | . . . . . 54 35 . . . . . . . . . . . 18 61 . . . . . . . . . Level 3 4 | . . . . . 12 . . . . . . . . . . . . 8 38 . . . . . . . . . Level 4 . | . . . . . . . . . . . . . . . . . . . . . . . . . . . . . Level 5 . | . . . . . . . . . . . . . . . . . . . . . . . . . . . . . High Security . | . . . . . . . . . . . . . . . . . . . . . . . . . . . . . Max Security . | . . . . . . . . . . . . . . . . . . . . . . . . . . . . . Sterilizations 1 | . . . . . 1 . . . . . . . . . . . . . . . . . . . . . . . Peak Influence 934 | 10 60 70 . 118 910 561 156 . 168 . . . . 48 218 154 201 934 796 . . . . 74 199 101 227 189 Initial 447 | . . 8 . . 25 380 126 . . . . . . 41 . 81 16 16 447 . . . . . . 96 24 110 Average 207 | 1 8 13 . 16 478 397 23 . 53 . . . . 9 100 100 128 387 643 . . . . 18 139 19 95 67 Influence Increases 10345 | 30 77 233 . 138 1639 817 326 . 522 . 15 . 110 69 766 307 285 1604 828 100 . 10 55 304 620 174 681 635 Destroy 0b10 Robot/C 5040 | . 60 180 . 80 1080 440 80 . 140 . . . 80 . 360 140 80 500 440 60 . . 40 160 340 40 360 380 Destroy 0b10 Robot/NC 570 | 30 5 15 . . 95 80 15 . 25 . . . 5 . 50 10 40 40 40 . . 10 . 45 15 15 20 15 Destroy Leader 974 | . 12 20 . 10 242 116 . . 42 . . . 10 . 24 . . 116 106 10 . . . 52 64 24 56 70 Allied During Kill 791 | . . . . . 18 5 13 . . . . . . . 216 140 120 269 . . . . . . . . 10 . Successful Hack 219 | . . . . . 5 8 8 . 50 . . . . . 29 . . 30 50 . . . . . 10 5 10 14 Select Force Hacks 270 | . . . . . 30 30 210 . . . . . . . . . . . . . . . . . . . . . Disable Machine 885 | . . . . 30 15 105 . . 45 . . . . 30 15 . 45 270 105 . . . . . 105 . 90 30 Destroy Structure 861 | . . 3 . 18 64 18 . . 40 . . . . 24 72 2 . 334 72 . . . . 32 26 30 60 66 Partial Spotted 90 | . . . . . . . . . 45 . . . . 15 . . . . . . . . . . 15 . 15 . Lose Combat Pursuer 645 | . . 15 . . 90 15 . . 135 . 15 . 15 . . 15 . 45 15 30 . . 15 15 45 60 60 60 Influence Decreases 10202 | 30 55 236 19 72 804 1393 651 . 361 161 15 . 44 135 620 411 278 739 1059 661 122 10 55 304 448 302 529 688 Entered New Map 1930 | . . 14 19 . 41 521 199 . . 61 . . . 25 . 65 26 33 467 253 24 . . . . 76 20 86 Time Decay 7096 | 30 55 222 . 62 563 672 432 . 341 100 15 . 44 110 431 246 222 526 592 398 98 10 55 304 438 226 479 425 Lost Part 384 | . . . . 10 30 . . . 20 . . . . . 37 . 10 80 . 10 . . . . . . 10 177 Lost Ally 642 | . . . . . 20 200 20 . . . . . . . 152 100 20 100 . . . . . . 10 . 20 . Purge Threat 150 | . . . . . 150 . . . . . . . . . . . . . . . . . . . . . . . Squads Dispatched 82 | . . . . 1 11 3 . . 12 . . . . 4 1 . . 5 11 . . . 1 9 4 4 10 6 Investigation 29 | . . . . . 2 1 . . 7 . . . . 3 1 . . . 5 . . . 1 4 . 2 . 3 Extermination 21 | . . . . . . . . . 3 . . . . 1 . . . 2 3 . . . . . 4 1 5 2 Reinforcement 24 | . . . . . 4 1 . . 2 . . . . . . . . 3 2 . . . . 5 . 1 5 1 Assault 5 | . . . . 1 2 1 . . . . . . . . . . . . 1 . . . . . . . . . Garrison 3 | . . . . . 3 . . . . . . . . . . . . . . . . . . . . . . . Intercept . | . . . . . . . . . . . . . . . . . . . . . . . . . . . . . Searches Triggered . | . . . . . . . . . . . . . . . . . . . . . . . . . . . . . Construction Impeded 2 | . . . . . 1 . . . . . . . . . . . . . 1 . . . . . . . . . Haulers Reinforced 6 | . . . . . . . . . 1 . . . . . . . . 1 1 . . . . 1 . . 2 . Active Scanning Responses . | . . . . . . . . . . . . . . . . . . . . . . . . . . . . . Cargo Convoy Interrupts . | . . . . . . . . . . . . . . . . . . . . . . . . . . . . . Stealth | -11 -10 -10 -10 -9 -8 -8 -8 -8 -6 -6 -6 -6 -5 -5 -5 -5 -5 -5 -4 -4 -4 -4 -3 -3 -3 -2 -2 -2 --------- Run | Yrd Mat Min Exi Min Mat Sto Rec Scr Fac Low Low Zio Pro Fac Ext Cet Arc Hub Fac Upp Upp Zhi Pro Res Qua Res Tes Frg Distress Signals 30 | . . . . . 4 5 . . 1 . . . . . 1 2 . . 1 . . . 1 10 1 1 2 1 Communications Jammed 5 | . . . . . . . . . . . . . . . . . . . . . . . . . . . . 5 Distress Signals 5 | . . . . . . . . . . . . . . . . . . . . . . . . . . . . 5 Times Spotted 416 | . 7 13 . 5 71 30 4 . 20 . 1 . 3 1 19 11 9 35 27 5 . . 31 16 23 15 27 43 Peak Tracking Total 11 | . 3 3 . 3 7 5 2 . 5 . 1 . 1 1 5 5 1 6 5 3 . . 11 5 4 6 4 10 Tactical Retreats 36 | . . 2 . . 4 1 . . 7 . 1 . 1 . . 1 . 3 1 1 . . 1 1 1 3 4 4 Traps | -11 -10 -10 -10 -9 -8 -8 -8 -8 -6 -6 -6 -6 -5 -5 -5 -5 -5 -5 -4 -4 -4 -4 -3 -3 -3 -2 -2 -2 ------- Run | Yrd Mat Min Exi Min Mat Sto Rec Scr Fac Low Low Zio Pro Fac Ext Cet Arc Hub Fac Upp Upp Zhi Pro Res Qua Res Tes Frg Traps Triggered 20 | . . . . . . 2 . . 5 . . . . 2 3 . . 2 1 . . . . . . . 3 2 Indirectly . | . . . . . . . . . . . . . . . . . . . . . . . . . . . . . Trap Hack Attempts . | . . . . . . . . . . . . . . . . . . . . . . . . . . . . . Triggered . | . . . . . . . . . . . . . . . . . . . . . . . . . . . . . Disarmed . | . . . . . . . . . . . . . . . . . . . . . . . . . . . . . Reprogrammed . | . . . . . . . . . . . . . . . . . . . . . . . . . . . . . Reused . | . . . . . . . . . . . . . . . . . . . . . . . . . . . . . Traps Extracted . | . . . . . . . . . . . . . . . . . . . . . . . . . . . . . Installed 4 | . . . . 4 . . . . . . . . . . . . . . . . . . . . . . . . Triggered . | . . . . . . . . . . . . . . . . . . . . . . . . . . . . . Most Traps Carried 2 | . . . . 2 . . . . . . . . . . . . . . . . . . . . . . . . Machines | -11 -10 -10 -10 -9 -8 -8 -8 -8 -6 -6 -6 -6 -5 -5 -5 -5 -5 -5 -4 -4 -4 -4 -3 -3 -3 -2 -2 -2 ---------- Run | Yrd Mat Min Exi Min Mat Sto Rec Scr Fac Low Low Zio Pro Fac Ext Cet Arc Hub Fac Upp Upp Zhi Pro Res Qua Res Tes Frg Machines Disabled 61 | . . . . 2 1 7 . . 3 . . . . 2 1 . 3 18 7 . . . 1 . 7 . 6 3 Max in Single Turn 17 | . . . . 2 1 1 . . 1 . . . . 1 1 . . 17 2 . . . 1 . 2 . 1 1 Garrison Access 7 | . . . . . . . . . 1 . . . . 1 . . . . 1 . . . . 2 . . 1 1 Network Hub 3 | . . . . . . . . . . . . . . . . . . 3 . . . . . . . . . . Machines Repaired . | . . . . . . . . . . . . . . . . . . . . . . . . . . . . . Machines Dismantled . | . . . . . . . . . . . . . . . . . . . . . . . . . . . . . Machines Sabotaged . | . . . . . . . . . . . . . . . . . . . . . . . . . . . . . Overloaded Fab Kills . | . . . . . . . . . . . . . . . . . . . . . . . . . . . . . Hacking | -11 -10 -10 -10 -9 -8 -8 -8 -8 -6 -6 -6 -6 -5 -5 -5 -5 -5 -5 -4 -4 -4 -4 -3 -3 -3 -2 -2 -2 --------- Run | Yrd Mat Min Exi Min Mat Sto Rec Scr Fac Low Low Zio Pro Fac Ext Cet Arc Hub Fac Upp Upp Zhi Pro Res Qua Res Tes Frg Machines Accessed 116 | . 2 . 1 . 8 10 12 1 17 . . 1 . 8 9 . . 2 13 . . 4 2 6 5 4 4 7 Terminals 57 | . 2 . . . 5 8 5 . 7 . . . . 3 8 . . 2 4 . . . 1 1 4 1 3 3 Fabricators 5 | . . . . . . . . . 2 . . . . 1 . . . . 2 . . . . . . . . . Repair Stations 3 | . . . . . 1 1 . . 1 . . . . . . . . . . . . . . . . . . . Recycling Units 30 | . . . . . 1 1 7 . 4 . . . . 3 1 . . . 5 . . . 1 2 . 2 . 3 Scanalyzers 5 | . . . . . . . . . 2 . . . . . . . . . 1 . . . . 1 1 . . . Garrison Access 9 | . . . . . 1 . . . 1 . . . . 1 . . . . 1 . . . . 2 . 1 1 1 Total Hacks 255 | . 5 . 1 . 23 13 17 15 28 . . 8 . 14 18 . . 6 34 . . 17 2 16 9 8 5 16 Successful 156 | . 2 . 1 . 8 9 12 15 18 . . 8 . 6 8 . . 3 18 . . 17 2 10 5 3 4 7 Failed 97 | . 3 . . . 15 4 5 . 9 . . . . 8 10 . . 3 16 . . . . 6 3 5 1 9 Catastrophic 21 | . . . . . 4 1 . . 4 . . . . 1 1 . . 2 3 . . . . 1 1 1 . 2 Database Lockouts 2 | . . . . . . . . . 1 . . . . . . . . . . . . . . . 1 . . . Manual 134 | . 5 . . . 15 2 17 . 15 . . . . 9 8 1 . 6 19 . . . 1 7 8 5 3 13 Terminals 120 | . 5 . . . 13 10 7 . 14 . . . . 7 16 . . 6 14 . . . 1 7 7 3 4 6 Fabricators 13 | . . . . . . . . . 3 . . . . 1 . . . . 9 . . . . . . . . . Repair Stations 9 | . . . . . 5 2 . . 2 . . . . . . . . . . . . . . . . . . . Recycling Units 42 | . . . . . 2 1 10 . 5 . . . . 4 2 . . . 6 . . . 1 2 . 2 . 7 Scanalyzers 12 | . . . . . . . . . 3 . . . . . . . . . 4 . . . . 3 2 . . . Garrison Access 18 | . . . . . 3 . . . 1 . . . . 2 . . . . 1 . . . . 4 . 3 1 3 Terminal Hacks 68 | . . . 1 . 1 6 . 15 4 . . 8 . 1 6 . . 2 1 . . 17 1 2 1 1 1 . Record 21 | . . . 1 . . . . 15 . . . . . . . . . . . . . 5 . . . . . . Part Schematic 15 | . . . . . . . . . 2 . . 8 . . 1 . . . . . . 4 . . . . . . Robot Analysis 4 | . . . . . . . . . . . . . . . . . . . . . . 4 . . . . . . Prototype ID Bank 4 | . . . . . . . . . . . . . . . . . . . . . . 4 . . . . . . Open Door 10 | . . . . . . 3 . . . . . . . 1 5 . . . . . . . 1 . . . . . Level Access Points 1 | . . . . . . . . . . . . . . . . . . 1 . . . . . . . . . . Branch Access Points 3 | . . . . . . . . . . . . . . . . . . . 1 . . . . 1 . 1 . . Terminal Index 1 | . . . . . . . . . . . . . . . . . . 1 . . . . . . . . . . Recycling Unit Index 1 | . . . . . . . . . . . . . . . . . . . . . . . . 1 . . . . Alert Level 4 | . . . . . . 2 . . . . . . . . . . . . . . . . . . 1 . 1 . Unreport Threat 1 | . . . . . 1 . . . . . . . . . . . . . . . . . . . . . . . Locate Traps 3 | . . . . . . 1 . . 2 . . . . . . . . . . . . . . . . . . . Fabricator Hacks 8 | . . . . . . . . . 3 . . . . . . . . . 5 . . . . . . . . . Network Status 3 | . . . . . . . . . 1 . . . . . . . . . 2 . . . . . . . . . Load Schematic 2 | . . . . . . . . . 1 . . . . . . . . . 1 . . . . . . . . . Build 3 | . . . . . . . . . 1 . . . . . . . . . 2 . . . . . . . . . Repair Station Hacks 7 | . . . . . 4 2 . . 1 . . . . . . . . . . . . . . . . . . . Scan Component 3 | . . . . . 2 1 . . . . . . . . . . . . . . . . . . . . . . Repair 3 | . . . . . 2 1 . . . . . . . . . . . . . . . . . . . . . . Refit 1 | . . . . . . . . . 1 . . . . . . . . . . . . . . . . . . . Recycling Unit Hacks . | . . . . . . . . . . . . . . . . . . . . . . . . . . . . . Scanalyzer 8 | . . . . . . . . . 3 . . . . . . . . . 2 . . . . 2 1 . . . Insert Component 2 | . . . . . . . . . 1 . . . . . . . . . 1 . . . . . . . . . Analyze 2 | . . . . . . . . . 1 . . . . . . . . . 1 . . . . . . . . . Retrieve Study 4 | . . . . . . . . . 1 . . . . . . . . . . . . . . 2 1 . . . Garrison Access Hacks 7 | . . . . . . . . . 1 . . . . 1 . . . . 1 . . . . 2 . . 1 1 Seal Access 7 | . . . . . . . . . 1 . . . . 1 . . . . 1 . . . . 2 . . 1 1 Unauthorized Hacks 58 | . 2 . . . 3 1 12 . 6 . . . . 4 2 . . 1 9 . . . 1 4 3 2 2 6 Terminals 27 | . 2 . . . 2 . 5 . 2 . . . . 1 1 . . 1 2 . . . . 2 3 . 2 4 Track 1 | . . . . . . . . . . . . . . . . . . . . . . . . . . . . 1 Assimilate 7 | . . . . . . . . . . . . . . 1 . . . 1 1 . . . . . 2 . . 2 Botnet 7 | . . . . . 1 . . . 2 . . . . . 1 . . . 1 . . . . 1 . . 1 . Operators 4 | . . . . . . . . . . . . . . . . . . . . . . . . 1 1 . 1 1 Skim 8 | . 2 . . . 1 . 5 . . . . . . . . . . . . . . . . . . . . . Fabricators 2 | . . . . . . . . . . . . . . . . . . . 2 . . . . . . . . . Prioritize 2 | . . . . . . . . . . . . . . . . . . . 2 . . . . . . . . . Repair Stations . | . . . . . . . . . . . . . . . . . . . . . . . . . . . . . Recycling Units 29 | . . . . . 1 1 7 . 4 . . . . 3 1 . . . 5 . . . 1 2 . 2 . 2 Tunnel 9 | . . . . . 1 1 7 . . . . . . . . . . . . . . . . . . . . . Fedlink 20 | . . . . . . . . . 4 . . . . 3 1 . . . 5 . . . 1 2 . 2 . 2 Scanalyzers . | . . . . . . . . . . . . . . . . . . . . . . . . . . . . . Garrison Access . | . . . . . . . . . . . . . . . . . . . . . . . . . . . . . Data Cores Recovered 2 | . . . . . 1 . . . . . . . . . . . . . . . . . . . . . 1 . Used 1 | . . . . . 1 . . . . . . . . . . . . . . . . . . . . . . . Hacking Detections 45 | . 2 . . . 5 5 3 . 9 . . . . 5 5 . . 2 4 . . . . . 1 2 . 2 Full Trace Events 5 | . . . . . 1 1 . . 3 . . . . . . . . . . . . . . . . . . . Feedback Events . | . . . . . . . . . . . . . . . . . . . . . . . . . . . . . Feedback Blocked . | . . . . . . . . . . . . . . . . . . . . . . . . . . . . . Robot Schematics Acquired 1 | . . . . . . . . . . . . . . . . . . . . . . . . . . . 1 . Robots Built . | . . . . . . . . . . . . . . . . . . . . . . . . . . . . . Authchips . | . . . . . . . . . . . . . . . . . . . . . . . . . . . . . Time . | . . . . . . . . . . . . . . . . . . . . . . . . . . . . . Total Robot Build Rating . | . . . . . . . . . . . . . . . . . . . . . . . . . . . . . Part Schematics Acquired 17 | . . . . . . . . . 3 . . 8 . . 1 . . . 1 . . 4 . . . . . . Parts Built 5 | . . . . . . . . . 2 . . . . . . . . . 3 . . . . . . . . . Authchips 1 | . . . . . . . . . . . . . . . . . . . 1 . . . . . . . . . Time 145 | . . . . . . . . . 47 . . . . . . . . . 98 . . . . . . . . . Total Part Build Rating 33 | . . . . . . . . . 10 . . . . . . . . . 23 . . . . . . . . . Part Studies Acquired 4 | . . . . . . . . . 1 . . . . . . . . . . . . . . 2 1 . . . Parts Repaired 3 | . . . . . 2 1 . . . . . . . . . . . . . . . . . . . . . . Time 228 | . . . . . 120 108 . . . . . . . . . . . . . . . . . . . . . . Parts Recycled . | . . . . . . . . . . . . . . . . . . . . . . . . . . . . . Recycled Matter . | . . . . . . . . . . . . . . . . . . . . . . . . . . . . . Retrieved Matter . | . . . . . . . . . . . . . . . . . . . . . . . . . . . . . Retrieved Components . | . . . . . . . . . . . . . . . . . . . . . . . . . . . . . Parts Scanalyzed 2 | . . . . . . . . . 1 . . . . . . . . . 1 . . . . . . . . . Part Schematics Acquired 2 | . . . . . . . . . 1 . . . . . . . . . 1 . . . . . . . . . Parts Damaged . | . . . . . . . . . . . . . . . . . . . . . . . . . . . . . Bothacking | -11 -10 -10 -10 -9 -8 -8 -8 -8 -6 -6 -6 -6 -5 -5 -5 -5 -5 -5 -4 -4 -4 -4 -3 -3 -3 -2 -2 -2 ------------ Run | Yrd Mat Min Exi Min Mat Sto Rec Scr Fac Low Low Zio Pro Fac Ext Cet Arc Hub Fac Upp Upp Zhi Pro Res Qua Res Tes Frg Used RIF Installer . | . . . . . . . . . . . . . . . . . . . . . . . . . . . . . Robots Hacked . | . . . . . . . . . . . . . . . . . . . . . . . . . . . . . Non-combat . | . . . . . . . . . . . . . . . . . . . . . . . . . . . . . Combat . | . . . . . . . . . . . . . . . . . . . . . . . . . . . . . Robot Hacks Applied . | . . . . . . . . . . . . . . . . . . . . . . . . . . . . . Relay Couplers Released 1 | . . . . . . . . . . . . . . . . . . . . . . . . . 1 . . . Programmers 1 | . . . . . . . . . . . . . . . . . . . . . . . . . 1 . . . Fabnet Peak Effective % . | . . . . . . . . . . . . . . . . . . . . . . . . . . . . . Robots Rewired 20 | . . . . . . . 5 . . . . . . . 14 . . . . . . . . . . . 1 . Allies Hacked . | . . . . . . . . . . . . . . . . . . . . . . . . . . . . . Hacks Repelled . | . . . . . . . . . . . . . . . . . . . . . . . . . . . . . Allies | -11 -10 -10 -10 -9 -8 -8 -8 -8 -6 -6 -6 -6 -5 -5 -5 -5 -5 -5 -4 -4 -4 -4 -3 -3 -3 -2 -2 -2 -------- Run | Yrd Mat Min Exi Min Mat Sto Rec Scr Fac Low Low Zio Pro Fac Ext Cet Arc Hub Fac Upp Upp Zhi Pro Res Qua Res Tes Frg Total Allies 48 | . . . . 1 . 10 5 . . . . . . 1 23 5 . . . . . . 1 . 1 . 1 . Largest Group 15 | . . . . 1 1 10 5 5 4 . . . . 1 15 13 9 8 . . . . . . 1 . 1 . Highest-Rated Group 773 | . . . . 31 31 173 68 68 58 . . . . 24 458 773 569 544 . . . . . . 26 . 148 . Highest-Rated Ally 159 | . . . . 31 31 29 18 18 18 . . . . 24 159 159 96 96 . . . . . . 26 . 148 . Initial UFD Resources 122 | . . . . . . . . . 23 41 41 41 44 44 60 62 62 62 66 86 86 86 89 99 105 108 122 122 Total Orders 24 | . . . . . . 2 . 3 . . . . . 4 6 5 . 4 . . . . . . . . . . STAY 14 | . . . . . . . . 2 . . . . . 2 3 3 . 4 . . . . . . . . . . FOLLOW 8 | . . . . . . . . 1 . . . . . 2 3 2 . . . . . . . . . . . . EXPLORE 2 | . . . . . . 2 . . . . . . . . . . . . . . . . . . . . . . Ally Attacks 328 | . . . . . 20 20 6 . 5 . . . . . 111 66 22 71 . . . . . . . . 7 . Total Damage 8995 | . . . . . 337 257 104 . 93 . . . . . 2299 1568 795 3136 . . . . . . . . 406 . Kills 52 | . . . . . 6 1 2 . . . . . . . 13 9 4 16 . . . . . . . . 1 . Allies Corrupted 6 | . . . . . . . . . . . . . . . . . . 5 . . . . . . . . 1 . Allies Melted 2 | . . . . . 1 . . . . . . . . . 1 . . . . . . . . . . . . . Intel | -11 -10 -10 -10 -9 -8 -8 -8 -8 -6 -6 -6 -6 -5 -5 -5 -5 -5 -5 -4 -4 -4 -4 -3 -3 -3 -2 -2 -2 ------- Run | Yrd Mat Min Exi Min Mat Sto Rec Scr Fac Low Low Zio Pro Fac Ext Cet Arc Hub Fac Upp Upp Zhi Pro Res Qua Res Tes Frg Active Infowar (turns) 24924 | 85 362 1950 381 779 1810 1848 897 1594 1033 149 726 415 680 421 597 . 148 1122 1659 953 514 244 1154 1074 989 759 1391 1190 Optics 3532 | . . . . . . . . . . . . . . . . . . . 554 953 326 . . . . . 509 1190 Sensors 18151 | . . . . 157 . 1707 897 1594 1033 149 683 415 678 421 597 . 148 1122 1611 929 512 243 1153 1068 966 720 1021 327 Terrain 1805 | . . . . . . . . . . . . . . . . . . 2 . . . . . 1063 740 . . . Structural 8605 | . . . . . . . . . 673 . 43 . 2 420 79 . . 158 1519 749 514 243 661 557 950 482 1024 531 Seismic 5535 | 85 362 1950 381 622 1750 287 . . 98 . . . . . . . . . . . . . . . . . . . T.N.C. 1293 | . . . . . 1293 . . . . . . . . . . . . . . . . . . . . . . . Jamming 732 | . . . . . . . . . . . . . . . . . . . . . . . . . . . 123 609 Robot Analysis Total 4 | . . . . . . . . . . . . . . . . . . . . . . 4 . . . . . . Derelict Logs Recovered 10 | . . 2 . . . . . . . . 2 3 1 . . . . . . 1 1 . . . . . . . Drone Launches 2 | . . . . . . 2 . . . . . . . . . . . . . . . . . . . . . . Drone Recoveries . | . . . . . . . . . . . . . . . . . . . . . . . . . . . . . Exploration | -11 -10 -10 -10 -9 -8 -8 -8 -8 -6 -6 -6 -6 -5 -5 -5 -5 -5 -5 -4 -4 -4 -4 -3 -3 -3 -2 -2 -2 ------------- Run | Yrd Mat Min Exi Min Mat Sto Rec Scr Fac Low Low Zio Pro Fac Ext Cet Arc Hub Fac Upp Upp Zhi Pro Res Qua Res Tes Frg Turns Passed 32018 | 171 401 1995 381 819 2605 2615 1789 3112 1115 331 740 417 685 421 1174 523 473 1464 1861 953 514 246 1206 1229 1164 851 1573 1190 Spaces Moved 19863 | 89 211 735 238 355 1092 1002 728 1667 1466 297 857 826 893 621 993 250 176 836 855 470 449 184 795 755 760 374 1108 781 Core 48 | 43 . . . . . . . . . . . . . . . . . 1 . . . . . . . . . 4 Treads 3338 | 46 211 735 238 355 1092 661 . . . . . . . . . . . . . . . . . . . . . . Legs 8069 | . . . . . . . . . . . . . . . 303 250 176 813 855 470 449 184 795 755 760 374 1108 777 Wheels 2466 | . . . . . . 341 728 1353 . . . . . . 22 . . 22 . . . . . . . . . . Hover 5942 | . . . . . . . . 314 1466 297 857 826 893 621 668 . . . . . . . . . . . . . Flight . | . . . . . . . . . . . . . . . . . . . . . . . . . . . . . Fastest Speed 40 | 50 160 160 160 160 156 155 225 47 40 48 48 48 48 43 40 120 120 100 100 104 104 104 116 113 113 110 97 50 Average Speed 111 | 106 160 160 160 161 160 179 232 179 45 48 48 48 48 43 67 120 123 113 100 104 104 110 116 113 113 110 104 91 Slowest Speed 1450 | 160 160 160 160 240 240 240 240 240 220 48 104 48 48 43 190 120 190 1450 104 104 104 116 116 116 113 110 113 170 Overloaded Moves . | . . . . . . . . . . . . . . . . . . . . . . . . . . . . . Propulsion Burnouts . | . . . . . . . . . . . . . . . . . . . . . . . . . . . . . Robots Hopped 2 | . . . . . . . . . . . . . . . . . . . . . . . . 2 . . . . Potential Cave-ins 39 | . . . . 2 . . . . . . . . . . . . . . . . . . . . . . 2 35 Cave-ins Triggered 5 | . . . . . . . . . 1 . . . . . . . . . . . . . . . . . . 4 Teleports 2 | . . . . . . . . . . . . . . . . . . . . . . . . . 1 . . 1 Exploration Rate (%) 62 | 4 40 99 59 80 68 94 96 85 46 46 87 82 79 18 86 56 74 46 23 77 67 60 77 33 81 12 90 42 Regions Visited 28 Branch Regions 21 Pre-discovered Areas 23 | . . 1 1 . 1 1 9 3 1 . . 3 . . . . . . . . . 3 . . . . . . Known Exits Taken 22 | . . . . . . 1 1 1 1 1 1 1 1 1 1 1 1 1 1 1 1 1 1 1 1 1 1 . Unknown Exits Taken 6 | 1 1 1 1 1 1 . . . . . . . . . . . . . . . . . . . . . . . Scrap Searched 20 | . . 1 . 1 . . . 4 . 2 4 1 1 . . . . . . 1 3 . 2 . . . . . Spaces Dug 195 | . . 2 . . 7 3 . . 39 1 1 . 16 12 8 . . 10 16 3 1 . . 15 11 11 20 19 Terrain Destroyed 576 | . . 3 . 21 62 12 . . 41 1 4 . 76 12 38 . . 180 35 3 1 . . 15 13 11 22 26 Melee 181 | . . . . . 1 3 . . 38 1 1 . 14 12 8 . . 10 16 3 1 . . 15 11 11 17 19 Projectile 28 | . . 3 . . 12 . . . 3 . 3 . 2 . . . . . . . . . . . . . 5 . AOE 360 | . . . . 21 49 9 . . . . . . 60 . 30 . . 170 19 . . . . . 2 . . . Terrain Rammed . | . . . . . . . . . . . . . . . . . . . . . . . . . . . . . Walls Destroyed . | . . . . . . . . . . . . . . . . . . . . . . . . . . . . . Machines Disabled . | . . . . . . . . . . . . . . . . . . . . . . . . . . . . . Actions | -11 -10 -10 -10 -9 -8 -8 -8 -8 -6 -6 -6 -6 -5 -5 -5 -5 -5 -5 -4 -4 -4 -4 -3 -3 -3 -2 -2 -2 --------- Run | Yrd Mat Min Exi Min Mat Sto Rec Scr Fac Low Low Zio Pro Fac Ext Cet Arc Hub Fac Upp Upp Zhi Pro Res Qua Res Tes Frg Total 27981 | 126 247 1458 238 592 1639 1642 811 1798 1769 481 1169 843 1118 741 1414 454 408 1200 1735 917 491 215 1049 1055 968 791 1456 1156 Wait 5513 | 3 3 659 . 203 184 389 27 50 117 179 290 . 191 80 241 158 204 192 710 425 37 . 203 217 51 367 126 207 Move 19828 | 88 210 734 237 354 1091 1001 727 1666 1465 296 856 825 892 620 992 249 175 835 854 469 448 183 794 750 759 373 1107 778 Hop 2 | . . . . . . . . . . . . . . . . . . . . . . . . 2 . . . . Pick Up 201 | 7 12 2 1 5 31 20 . 32 13 1 . 2 . 2 6 8 4 11 8 1 . 3 4 4 8 5 3 8 Fast Attach 129 | 3 1 . . . 6 3 . 6 13 1 1 3 4 1 9 . 2 16 4 . 1 4 1 1 6 1 19 23 Attach 82 | 4 . 2 . 2 10 1 . 3 9 1 . 1 . 2 2 1 1 3 10 1 . 1 1 5 3 4 3 12 Detach 25 | . 1 . . . 2 . . . 6 . . . . . . . . . 7 . . 1 . 1 2 . 2 3 Swap 524 | . 3 7 . 12 54 68 5 . 23 2 14 7 10 . 26 13 3 34 47 8 2 14 14 22 52 12 57 15 Drop 268 | . 2 2 . 7 35 25 . 40 31 . . 5 4 . 15 10 4 21 10 . 1 6 7 5 9 5 21 3 Fire 521 | 21 15 47 . 3 212 125 10 1 9 . 6 . 3 . 5 4 . . 24 . . . . 13 4 . 3 16 Melee 704 | . . . . . 3 5 . . 83 1 2 . 14 16 35 11 15 88 60 13 2 3 24 35 74 24 108 88 Ram 1 | . . . . . . . 1 . . . . . . . . . . . . . . . . . . . . . Kick 1 | . . . . . . . . . . . . . . . . . . . 1 . . . . . . . . . Crush 20 | . . 5 . 2 9 4 . . . . . . . . . . . . . . . . . . . . . . Escape Stasis 44 | . . . . . . . . . . . . . . 20 21 . . . . . . . . . . . . 3 Rewire 112 | . . . . . 2 . 41 . . . . . . . 62 . . . . . . . . . . . 7 . Trap 4 | . . . . 4 . . . . . . . . . . . . . . . . . . . . . . . . Miscellaneous 2 | . . . . . . 1 . . . . . . . . . . . . . . . . 1 . . . . . Route ------- -11/Scrapyard -10/Materials -10/Mines (discovered 4 exits: [*Mat x2] / *Exi / [*Sub]) -10/Exiles -9/Mines (discovered 2 exits: *Mat x2) -8/Materials (discovered 3 exits: *Fac x2 / *Sto) -8/Storage (discovered 2 exits: *Fac / *Rec) -8/Recycling (discovered 2 exits: *Fac / *Scr) -8/Scraptown (discovered 2 exits: *Fac x2) -6/Factory (discovered 4 exits: *Fac x3 / *Low) -6/Lower Caves -6/Lower Caves (discovered 2 exits: *Fac / *Zio) -6/Zion (discovered 2 exits: Dee / *Pro) -5/Proximity Caves -5/Factory (discovered 5 exits: *Fac x3 / Upp / *Ext) -5/Extension (discovered 2 exits: *Fac / *Cet) -5/Cetus (discovered 2 exits: *Fac / *Arc) -5/Archives (discovered 3 exits: *Fac / *Hub x2) -5/Hub_04(d) (discovered 4 exits: *Fac x4) -4/Factory (discovered 2 exits: *Upp x2) -4/Upper Caves -4/Upper Caves (discovered 2 exits: *Res / *Zhi) -4/Zhirov -3/Proximity Caves -3/Research (discovered 5 exits: *Res x2 / Arm / *Qua x2) -3/Quarantine -2/Research (discovered 4 exits: Acc x2 / *Tes x2) -2/Testing (discovered 3 exits: *Acc / *Sec / *Frg) -2/Protoforge (discovered 1 exit: *Acc) History --------- Turn | Location | Event 8 | -11/Scrapyard | Discovered new exit (range 16) 172 | -11/Scrapyard | Entered Materials 327 | -10/Materials | Build established: Mutant 525 | -10/Materials | Discovered new exit (range 10) 573 | -10/Materials | Entered Mines 577 | -10/Mines | Discovered new exit (range 11) 581 | -10/Mines | Met a Derelict bent on vengeance 631 | -10/Mines | Discovered new exit (range 10) 685 | -10/Mines | Found a Scrap Suit stashed away for nefarious purposes 817 | -10/Mines | Learned Materials trap positions 819 | -10/Mines | Discovered new exit (range 15) 887 | -10/Mines | Learned location of Storage (-8) 998 | -10/Mines | Deemed a non-threat by the Exiles lab entrance 998 | -10/Mines | Discovered new exit (range 5) 1407 | -10/Mines | Excavation squad dispatched 1407 | -10/Mines | A large section of the Mines collapsed 2568 | -10/Mines | Entered Exiles 2612 | -10/Exiles | Met 8R-AWN 2634 | -10/Exiles | Met EX-HEX 2698 | -10/Exiles | Met EX-DEC 2706 | -10/Exiles | Learned location of Zion (-6) 2928 | -10/Exiles | Discovered new exit (range 15) 2949 | -10/Exiles | Entered Mines 2960 | -9/Mines | Received a Rocket Launcher from a helpful Derelict 3022 | -9/Mines | Assembled infested the area 3273 | -9/Mines | Found a hidden stash of uninstalled traps 3324 | -9/Mines | Found a damaged Exp. Sensor Array with a note attached 3327 | -9/Mines | Found Prototype Device 3327 | -9/Mines | Identified Exp. Sensor Array 3657 | -9/Mines | Discovered new exit (range 3) 3744 | -9/Mines | Discovered new exit (range 10) 3745 | -9/Mines | Met a Derelict testing a Signal Generator 3768 | -9/Mines | Entered Materials 3768 | -8/Materials | Accompanied by 1 ally 3768 | -8/Materials | Evolved 4 slots: Propulsion x2, Utility x2 3769 | -8/Materials | Loaded intel: 8 trap records 4113 | -8/Materials | Destroyed 7 combat bots 4436 | -8/Materials | Build established: Scavenger-Mutant 4556 | -8/Materials | Discovered new exit (range 8) 4601 | -8/Materials | Garrison activated, responded to threat 4759 | -8/Materials | Discovered new exit (range 5) 4862 | -8/Materials | Discovered new exit (range 3) 4968 | -8/Materials | First assault squad dispatched 5318 | -8/Materials | Core integrity fell below 50% 5515 | -8/Materials | Repaired Enh. Autogun 5577 | -8/Materials | Repaired Enh. Autogun 6160 | -8/Materials | Sterilization system engaged 6160 | -8/Materials | Non-combat units ordered to evacuate 6260 | -8/Materials | Combat units ordered to evacuate 6373 | -8/Materials | Entered Storage 7084 | -8/Storage | Found Prototype Launcher 7084 | -8/Storage | Identified Scatter Rocket Array 7228 | -8/Storage | Build established: Mutant 7477 | -8/Storage | Used back door to open Recycling access 7477 | -8/Storage | Discovered new exit (range 4) 8065 | -8/Storage | Core integrity fell below 20% 8228 | -8/Storage | Discovered new exit (range 6) 8462 | -8/Storage | Repaired Exp. Sensor Array 8580 | -8/Storage | Identified exit to Factory 8756 | -8/Storage | Assisted by bots powering up and referring to "LRC-V3" 8773 | -8/Storage | First assault squad dispatched 8888 | -8/Storage | Lost 9 allies 8986 | -8/Storage | Identified exit to Recycling 8988 | -8/Storage | Entered Recycling 8988 | -8/Recycling | Accompanied by 1 ally 9443 | -8/Recycling | Discovered new exit (range 15) 9910 | -8/Recycling | Build established: Commander-Mutant 10578 | -8/Recycling | Learned Storage stockpile data 10621 | -8/Recycling | Learned 2 Lower Caves zone layouts 10691 | -8/Recycling | Scanned before Scraplab entrance 10714 | -8/Recycling | Learned location of 2 exits from Lower Caves 10731 | -8/Recycling | Entered Scraplab 10750 | -8/Recycling | Discovered new exit (range 2) 10750 | -8/Recycling | Identified exit to Scraptown 10759 | -8/Recycling | Learned Storage emergency access door positions 10777 | -8/Recycling | Entered Scraptown 10777 | -8/Scraptown | Accompanied by 5 allies 10777 | -8/Scraptown | System corruption cleaned by C-Scrubber 11154 | -8/Scraptown | Visited UFD Registry 11154 | -8/Scraptown | Registered with UFD as "Autospreader" 11183 | -8/Scraptown | Visited SPCMW 11272 | -8/Scraptown | Visited Spacefarers 11293 | -8/Scraptown | Visited Awakened 11308 | -8/Scraptown | Visited The Evicted 11334 | -8/Scraptown | Visited Comm Corps 11416 | -8/Scraptown | Visited Assassins FH 11581 | -8/Scraptown | Visited Curators Association 11661 | -8/Scraptown | Visited Infowarlord's Domain 11694 | -8/Scraptown | Visited Scrapoid Research Area 11716 | -8/Scraptown | Visited Modified Component R&D 11800 | -8/Scraptown | Visited Scrap Suit Storage 11841 | -8/Scraptown | Visited Chapter 10 11881 | -8/Scraptown | Visited Cartography Club 12060 | -8/Scraptown | Found Deep Structural Scanner 12066 | -8/Scraptown | Learned location of Lower Caves (-6) 12066 | -8/Scraptown | Learned 8 Factory zone layouts 12066 | -8/Scraptown | Learned 20 Factory zone layouts 12066 | -8/Scraptown | Learned 12 Factory zone layouts 12066 | -8/Scraptown | Learned 4 Mines zone layouts 12066 | -8/Scraptown | Learned 12 Proximity Caves zone layouts 12066 | -8/Scraptown | Learned location of 2 exits from Factory 12066 | -8/Scraptown | Learned location of 2 exits from Lower Caves 12066 | -8/Scraptown | Learned location of 3 exits from Upper Caves 12110 | -8/Scraptown | Found Exp. Terrain Scanner 12137 | -8/Scraptown | Visited Derelict Rescue Squad 12139 | -8/Scraptown | Found DRS Beacon 12149 | -8/Scraptown | Visited Scrapoid Pod Storage 12152 | -8/Scraptown | Found Scrapoid Pod 12831 | -8/Scraptown | Discovered new exit (range 13) 13547 | -8/Scraptown | Discovered new exit (range 5) 13569 | -8/Scraptown | Attached CPS modules to Rogue 3a 13787 | -8/Scraptown | Met Optimus 13787 | -8/Scraptown | Accepted into 0bPrime 13887 | -8/Scraptown | Identified exit to Factory 13889 | -8/Scraptown | Entered Factory 13889 | -6/Factory | Accompanied by 4 allies 13889 | -6/Factory | Evolved 4 slots: Power x1, Utility x3 13890 | -6/Factory | Discovered new exit (range 14) 13890 | -6/Factory | Identified exit to Factory 13890 | -6/Factory | Identified exit to Lower Caves 14072 | -6/Factory | Lost 4 allies 14344 | -6/Factory | Loaded intel: 8 recycling unit locations 14451 | -6/Factory | Build established: Hacker-Scout 14512 | -6/Factory | Fabricated Adv. Signal Interpreter (x2) 14669 | -6/Factory | Central database locked down 14694 | -6/Factory | Learned location of Protoforge (-2) 14842 | -6/Factory | Crushed by falling debris 15004 | -6/Factory | Entered Lower Caves 15005 | -6/Lower Caves | Identified exit to Lower Caves 15006 | -6/Lower Caves | Encountered a Warlord checkpoint 15151 | -6/Lower Caves | Build established: Hacker-Gladiator 15233 | -6/Lower Caves | Found Alien Artifact 15233 | -6/Lower Caves | Identified Core Expander 15233 | -6/Lower Caves | Installed Core Expander, added new Weapon slot 15335 | -6/Lower Caves | Entered another Lower Caves area 15336 | -6/Lower Caves | Identified exit to Zion 15405 | -6/Lower Caves | Learned location of 1 exit from Factory 15429 | -6/Lower Caves | Learned location of 1 exit from Proximity Caves 15477 | -6/Lower Caves | Spotted B-75 Beast 16075 | -6/Lower Caves | Entered Zion 16076 | -6/Zion | Identified exit to Proximity Caves 16099 | -6/Zion | System corruption cleaned by Quarantine Array 16170 | -6/Zion | Identified exit to Deep Caves 16173 | -6/Zion | Given A8's code to call for help 16214 | -6/Zion | Learned Factory emergency access door positions 16248 | -6/Zion | Found Prototype Special Weapon 16248 | -6/Zion | Identified RU-N14's Throwing Claymores 16274 | -6/Zion | Found Prototype Launcher 16274 | -6/Zion | Identified Gui. Missile Launcher 16492 | -6/Zion | Entered Proximity Caves 16961 | -5/Proximity Caves | Attracted the attention of an 0b10 checkpoint 17177 | -5/Proximity Caves | Entered Factory 17177 | -5/Factory | Evolved 2 slots: Propulsion x1, Utility x1 17178 | -5/Factory | Identified exit to Upper Caves 17178 | -5/Factory | Identified exit to Extension 17179 | -5/Factory | Identified exit to Factory 17266 | -5/Factory | Loaded intel: 8 recycling unit locations 17464 | -5/Factory | Build established: Hacker-Scout 17509 | -5/Factory | Discovered exit to Factory (range 15) 17547 | -5/Factory | Discovered exit to Factory (range 13) 17598 | -5/Factory | Entered Extension 17598 | -5/Extension | Accompanied by 1 ally 17878 | -5/Extension | Rescued a captive Derelict 17880 | -5/Extension | Rescued a captive Derelict 17898 | -5/Extension | Rescued a captive Derelict 17903 | -5/Extension | Rescued a captive Derelict 17913 | -5/Extension | Rescued a captive Derelict 17916 | -5/Extension | Rescued a captive Derelict 18057 | -5/Extension | Build established: Commander-Gladiator 18198 | -5/Extension | Spotted B-75 Beast 18212 | -5/Extension | Allies destroyed B-75 Beast 18215 | -5/Extension | Spotted B-75 Beast 18232 | -5/Extension | Destroyed B-75 Beast 18274 | -5/Extension | Lost 9 allies 18385 | -5/Extension | Rescued A7 18455 | -5/Extension | Loaded intel: 1 recycling unit location 18491 | -5/Extension | Build established: Scavenger-Gladiator 18643 | -5/Extension | Rescued a captive Derelict 18647 | -5/Extension | Rescued a captive Derelict 18705 | -5/Extension | Discovered exit to Factory (range 10) 18706 | -5/Extension | Discovered new exit (range 6) 18770 | -5/Extension | Identified exit to Cetus 18772 | -5/Extension | Entered Cetus 18772 | -5/Cetus | Accompanied by 13 allies (A7) 18777 | -5/Cetus | Acquired a Cetus Manufacturing Module code from A7 18830 | -5/Cetus | Spotted Cetus Guard 18830 | -5/Cetus | Spotted Cetus Guard 18832 | -5/Cetus | Spotted Cetus Guard 18833 | -5/Cetus | Destroyed Cetus Guard 18833 | -5/Cetus | Spotted Cetus Guard 18846 | -5/Cetus | Allies destroyed Cetus Guard 18850 | -5/Cetus | Allies destroyed Cetus Guard 18856 | -5/Cetus | Allies destroyed Cetus Guard 18868 | -5/Cetus | Lost 3 allies 18960 | -5/Cetus | Started Cetus Manufacturing Module 18974 | -5/Cetus | Discovered new exit (range 15) 18985 | -5/Cetus | Manufactured an Enhanced Grunt 19010 | -5/Cetus | Manufactured an Enhanced Grunt 19017 | -5/Cetus | Spotted Cetus Guard 19017 | -5/Cetus | Spotted Cetus Guard 19026 | -5/Cetus | Spotted Cetus Guard 19027 | -5/Cetus | Allies destroyed Cetus Guard 19029 | -5/Cetus | Spotted Cetus Guard 19035 | -5/Cetus | Manufactured an Enhanced Grunt 19039 | -5/Cetus | Allies destroyed Cetus Guard 19051 | -5/Cetus | Allies destroyed Cetus Guard 19060 | -5/Cetus | Manufactured an Enhanced Grunt 19064 | -5/Cetus | Discovered exit to Factory (range 15) 19070 | -5/Cetus | Met Revision 17 19075 | -5/Cetus | Lost 3 allies 19085 | -5/Cetus | Manufactured an Enhanced Grunt 19197 | -5/Cetus | Murdered A7 19201 | -5/Cetus | Found Prototype Protection 19201 | -5/Cetus | Identified Med. Regenerative Plating 19220 | -5/Cetus | Extracted ID and sensor layout for unrecognized location from A7's data core 19236 | -5/Cetus | Identified exit to Archives 19295 | -5/Cetus | Entered Archives 19295 | -5/Archives | Accompanied by 9 allies 19370 | -5/Archives | Discovered exit to Factory (range 15) 19390 | -5/Archives | Discovered new exit (range 16) 19703 | -5/Archives | Discovered new exit (range 15) 19720 | -5/Archives | Identified exit to Hub_04(d) 19768 | -5/Archives | Entered Hub_04(d) 19768 | -5/Hub_04(d) | Accompanied by 8 allies 19774 | -5/Hub_04(d) | Build established: Scavenger-Mutant 19775 | -5/Hub_04(d) | Discovered exit to Factory (range 14) 20400 | -5/Hub_04(d) | Build established: Scavenger-Gladiator 20442 | -5/Hub_04(d) | Network Hub disabled 20447 | -5/Hub_04(d) | Spotted Lightning 20447 | -5/Hub_04(d) | Spotted Lightning 20450 | -5/Hub_04(d) | Spotted Lightning 20479 | -5/Hub_04(d) | Destroyed Lightning 20479 | -5/Hub_04(d) | System corruption reached 10% 20509 | -5/Hub_04(d) | Lost 7 parts (6n1u) 20525 | -5/Hub_04(d) | Destroyed Lightning 20529 | -5/Hub_04(d) | Spotted Lightning 20530 | -5/Hub_04(d) | Destroyed Lightning 20534 | -5/Hub_04(d) | Spotted Lightning 20535 | -5/Hub_04(d) | Found Prototype Device 20535 | -5/Hub_04(d) | Identified Exp. EM Shield 20558 | -5/Hub_04(d) | Destroyed Lightning 20571 | -5/Hub_04(d) | Destroyed Lightning 20580 | -5/Hub_04(d) | Found Prototype Device 20599 | -5/Hub_04(d) | Found Prototype Processor 20599 | -5/Hub_04(d) | Identified Exp. Targeting Computer 20604 | -5/Hub_04(d) | System corruption reached 30% 20610 | -5/Hub_04(d) | Identified Exp. Phase Shifter 20760 | -5/Hub_04(d) | Network Hub disabled 20774 | -5/Hub_04(d) | Spotted Lightning 20814 | -5/Hub_04(d) | Destroyed Lightning 20831 | -5/Hub_04(d) | Found Exp. Phase Shifter 20987 | -5/Hub_04(d) | Spotted Lightning 20987 | -5/Hub_04(d) | Spotted Lightning 20987 | -5/Hub_04(d) | Spotted Lightning 21008 | -5/Hub_04(d) | Destroyed Lightning 21021 | -5/Hub_04(d) | Destroyed Lightning 21103 | -5/Hub_04(d) | Network Hub disabled 21104 | -5/Hub_04(d) | Core integrity fell below 50% 21126 | -5/Hub_04(d) | Destroyed Lightning 21154 | -5/Hub_04(d) | Found Prototype Energy Cannon 21154 | -5/Hub_04(d) | Identified EMDS 21232 | -5/Hub_04(d) | Entered Factory 21232 | -4/Factory | Evolved 2 slots: Utility x2 21424 | -4/Factory | Loaded intel: 8 recycling unit locations 21739 | -4/Factory | Fabricated Centrium Leg? 22187 | -4/Factory | Fabricated Nanoactuators (x2) 22373 | -4/Factory | Identified exit to Upper Caves 22397 | -4/Factory | Found Prototype Launcher 22397 | -4/Factory | Identified Com. Tesla Bomb Launcher 22482 | -4/Factory | First assault squad dispatched 23093 | -4/Factory | Entered Upper Caves 23094 | -4/Upper Caves | Identified exit to Upper Caves 23236 | -4/Upper Caves | Encountered a Warlord checkpoint 23329 | -4/Upper Caves | Learned 8 Research zone layouts 24046 | -4/Upper Caves | Entered another Upper Caves area 24047 | -4/Upper Caves | Encountered a Warlord checkpoint 24047 | -4/Upper Caves | Identified exit to Research 24047 | -4/Upper Caves | Identified exit to Zhirov 24560 | -4/Upper Caves | Entered Zhirov 24560 | -4/Zhirov | Discovered new exit (range 3) 24579 | -4/Zhirov | Met Zhirov 24608 | -4/Zhirov | Zhirov requested help retrieving the SGEMP Prototype 24624 | -4/Zhirov | Found Alien Artifact 24624 | -4/Zhirov | Identified Integrated Reactor 24624 | -4/Zhirov | Installed Integrated Reactor, increased core energy generation (+10) 24758 | -4/Zhirov | Found Alien Artifact 24802 | -4/Zhirov | Identified exit to Proximity Caves 24806 | -4/Zhirov | Entered Proximity Caves 24808 | -3/Proximity Caves | Greeted by an Infiltrator in a former 0b10 base 24816 | -3/Proximity Caves | Activated DRS Beacon 24817 | -3/Proximity Caves | Loaded intel: 1 recycling unit location 24817 | -3/Proximity Caves | Watched by a mysterious "MATRIX" hacker 24883 | -3/Proximity Caves | Former 0b10 base attacked by MAIN.C 24997 | -3/Proximity Caves | P-80 Master assimilated allied PL-4RG(M) 25013 | -3/Proximity Caves | P-80 Master assimilated allied 4W-AUC(s) 25017 | -3/Proximity Caves | P-80 Master assimilated allied PQ-6ZZ(M) 25019 | -3/Proximity Caves | Build established: Hacker-Gladiator 25050 | -3/Proximity Caves | Attracted the attention of an 0b10 outpost 25112 | -3/Proximity Caves | P-80 Master assimilated allied QO-5TB(b) 25125 | -3/Proximity Caves | Lost 18 allies 25206 | -3/Proximity Caves | 0b10 base defense nominally successful 25229 | -3/Proximity Caves | Lost 6 allies 25352 | -3/Proximity Caves | Build established: Scavenger-Gladiator 25896 | -3/Proximity Caves | Received a Behemoth hack from an annoying Tinkerer 25963 | -3/Proximity Caves | Discovered exit to Research (range 15) 26012 | -3/Proximity Caves | Entered Research 26012 | -3/Research | Evolved 2 slots: Power x1, Utility x1 26013 | -3/Research | Identified exit to Armory 26092 | -3/Research | Discovered new exit (range 25) 26092 | -3/Research | Identified exit to Quarantine 26212 | -3/Research | Revision forces began assault on 0b10 26275 | -3/Research | Met up with Revision 17++ 26348 | -3/Research | Lost 3 allies 26458 | -3/Research | Loaded intel: 5 recycling unit locations 26603 | -3/Research | Discovered new exit (range 19) 26611 | -3/Research | Lost 3 allies 26712 | -3/Research | Research terminal network offline 27028 | -3/Research | Identified exit to Research 27241 | -3/Research | Entered Quarantine 27407 | -3/Quarantine | Found Alien Artifact 27556 | -3/Quarantine | Found Prototype Launcher 27556 | -3/Quarantine | Identified Hellfire Missile Launcher 27592 | -3/Quarantine | Found Exp. Signal Interpreter 27621 | -3/Quarantine | Discovered exit to Research (range 25) 27731 | -3/Quarantine | Central database locked down 27817 | -3/Quarantine | Found Alien Artifact 27817 | -3/Quarantine | Identified Dimensional Node Initializer 27817 | -3/Quarantine | Initialized slip node 28068 | -3/Quarantine | Identified Subatomic Replicator 28068 | -3/Quarantine | Used Subatomic Replicator to create Alien Artifact 28105 | -3/Quarantine | Found Alien Artifact 28263 | -3/Quarantine | Build established: Hacker-Gladiator 28362 | -3/Quarantine | Found Dimensional Node Initializer 28375 | -3/Quarantine | Found Alien Artifact 28375 | -3/Quarantine | Identified Transdimensional Reconstructor 28375 | -3/Quarantine | Warped through subspace to slip node 28405 | -3/Quarantine | Entered Research 28405 | -2/Research | Evolved 2 slots: Propulsion x1, Utility x1 28406 | -2/Research | Identified exit to Access 28422 | -2/Research | Identified exit to Testing 28549 | -2/Research | Loaded intel: 4 recycling unit locations 28739 | -2/Research | Build established: Scavenger-Gladiator 29256 | -2/Research | Entered Testing 29326 | -2/Testing | Found Exp. EM Shield 29362 | -2/Testing | Found Prototype Hackware 29362 | -2/Testing | Identified System Mapper 29496 | -2/Testing | Found Prototype Launcher 29496 | -2/Testing | Identified Z-bomb Delivery System 29685 | -2/Testing | Build established: Hacker-Gladiator 29723 | -2/Testing | Discovered exit to Access (range 14) 29765 | -2/Testing | Found Prototype Leg 29765 | -2/Testing | Identified Myomer Exoskeleton 29777 | -2/Testing | Found Prototype Ballistic Cannon 29777 | -2/Testing | Identified Perforator 29955 | -2/Testing | Found Prototype Energy Cannon 29955 | -2/Testing | Identified Potential Cannon 30073 | -2/Testing | Found Prototype Device 30073 | -2/Testing | Identified Exp. Shock Absorption System 30226 | -2/Testing | Spotted PX-DS7PHMQ2AV 30296 | -2/Testing | Destroyed PX-DS7PHMQ2AV 30305 | -2/Testing | Found Prototype Device 30305 | -2/Testing | Identified Exp. Transmission Jammer 30320 | -2/Testing | Found Spectral Analyzer 30712 | -2/Testing | Rewired PG-6QE2ZXZWAM 30753 | -2/Testing | Spotted Fortress 30819 | -2/Testing | Discovered new exit (range 5) 30819 | -2/Testing | Discovered new exit (range 6) 30822 | -2/Testing | Identified exit to Section 7 30825 | -2/Testing | Identified exit to Protoforge 30829 | -2/Testing | Entered Protoforge 30843 | -2/Protoforge | Spotted Hotshot 30843 | -2/Protoforge | Spotted Hotshot 30914 | -2/Protoforge | Discovered exit to Access (range 13) 31207 | -2/Protoforge | Superfortress began startup sequence 31272 | -2/Protoforge | Spotted Hotshot 31293 | -2/Protoforge | Spotted Hotshot 31297 | -2/Protoforge | Destroyed Hotshot 31304 | -2/Protoforge | Destroyed Hotshot 31327 | -2/Protoforge | Identified Terrabomb 31327 | -2/Protoforge | Used Terrabomb 31327 | -2/Protoforge | Additional patrols dispatched to research labs 31338 | -2/Protoforge | Crushed by falling debris 31357 | -2/Protoforge | Crushed by falling debris 31413 | -2/Protoforge | Crushed by falling debris 31414 | -2/Protoforge | System corruption reached 10% 31432 | -2/Protoforge | Spotted AP7-3 31432 | -2/Protoforge | Spotted AP7-3 31440 | -2/Protoforge | Spotted B-90 Cyclops 31470 | -2/Protoforge | Destroyed AP7-3 31480 | -2/Protoforge | Found Prototype Processor 31480 | -2/Protoforge | Identified Exp. Target Analyzer 31507 | -2/Protoforge | System corruption reached 30% 31526 | -2/Protoforge | Core integrity fell below 50% 31529 | -2/Protoforge | Destroyed AP7-3 31543 | -2/Protoforge | Lost 15 parts (2p4n8u1w) 31575 | -2/Protoforge | Spotted Decapitator 31575 | -2/Protoforge | Spotted Decapitator 31578 | -2/Protoforge | Spotted EXE-6 31579 | -2/Protoforge | Spotted EXE-6 31597 | -2/Protoforge | Destroyed Decapitator 31600 | -2/Protoforge | Destroyed Decapitator 31645 | -2/Protoforge | Core integrity fell below 20% 31652 | -2/Protoforge | UFD initiated attack on Protoforge (Readiness: Maximal) 31652 | -2/Protoforge | Loaded intel: 3 recycling unit locations 31664 | -2/Protoforge | Destroyed EXE-6 31667 | -2/Protoforge | Destroyed EXE-6 31679 | -2/Protoforge | Found Prototype Processor 31679 | -2/Protoforge | Identified Exp. Armor Integrity Analyzer 31682 | -2/Protoforge | Found Prototype Processor 31682 | -2/Protoforge | Identified Exp. Core Analyzer 31688 | -2/Protoforge | Optimus greeted in Protoforge 31693 | -2/Protoforge | Found Prototype Ballistic Gun 31693 | -2/Protoforge | Identified Cep. XC Strikerail 31696 | -2/Protoforge | Found Cep. XC Strikerail 31709 | -2/Protoforge | Found Exp. Core Analyzer 31725 | -2/Protoforge | Forge Plexus network access discovered 31757 | -2/Protoforge | Initialized slip node 31881 | -2/Protoforge | Crushed by falling debris 31931 | -2/Protoforge | Found Cep. Core Shell 31933 | -2/Protoforge | Found Cep. Core Shell 31935 | -2/Protoforge | Found Cep. Core Shell 31938 | -2/Protoforge | Found Cep. Core Shell 31947 | -2/Protoforge | Found Cep. Antimissile System 31953 | -2/Protoforge | Spotted Striker 31956 | -2/Protoforge | Found Cep. Chromion Battery 31969 | -2/Protoforge | Spotted Immortal 31977 | -2/Protoforge | Build established: Scavenger-Mutant 31994 | -2/Protoforge | Spotted Executioner 31996 | -2/Protoforge | Destroyed Executioner 32019 | -2/Protoforge | Warped through subspace to slip node 32019 | -2/Protoforge | Core destroyed Last Messages --------------- Research. 32004_ System corrupted: Energy discharge (-336). 32005_ C-45 Heavy ARC bursts open, deploying its payload. 32005_ S-43 Plague unfolds itself. 32005_ P-80 Master unfolds itself. 32005_ L-61 Swordsman unfolds itself. 32005_ I-47 Archangel unfolds itself. 32006_ C-65 Expert destroyed. 32014_ Knocked back. 32015_ Acquired 4 matter. 32016_ Penetrated by Plasma Slug. 32016_ Exp. VSS Leg destroyed. 32019_ Cep. Core Shell destroyed. 32019_ Warped through subspace, drawn to slip node. 32019_ Dimensional Slip Node implodes. 32019_ Imp. Quantum Reactor destroyed. 32019_ Quantum Reactor+ destroyed. Map ----- +----------------------------------------------------+ | """""""""" "" "" "" "#?????????????????? | | """"""""""" "" "#?????????????????? | | """""""""""" "" " "#?????????????????? | | """"""""""""" "SS " " "#?????????????????? | | """""""""""""" " """ " "#?????????????????? | | """""""""""""" "" s"SS " "#?????????????????? | | """""""""""""" "" " "SSs " "#?????????????????? | | """"""""""""""" "" s " "#?????????????????? | | """"""""""""""" " " "" "" " "#?????????????????? | | """"""""""""""" sjs" #?????????????????? | | """"""""""""""" "" #?????????????????? | | """"""""""""""" " " """ sSS #?????????????????? | | """"""""""""""" "" SS ##????????????????? | | """"""""""""""" s " #????????????????? | | """"""""""""""" " "" "" #????????????????? | | """"""""""""""" " "" " ##????????????????? | | """""""""""""" "" " " %"#?????????????????? | | """""""""""""" """ " s =#?????????????????? | | """""""""""""" "" """ %%#?????????????????? | | """"""""""""" " " #?????????????????? | | """""""""""" "" " " "" #?????????????????? | | """"""""""" " " """" #?????????????????? | | """""""""" " " " """ #?????????????????? | | """"""""" "" " " "" #?????????????????? | | """""""" "" "" " "" l FFF #?????????????????? | | """"" "" "" K@xFFF #?????????????????? | | " "" "" """ s h FFF #?????????????????? | | "" "" "" s s"s"" #?????????????????? | | " " " """" ###???????????????? | | """" " "" """ "" <&#???????????????? | | """""""""" "" <&#???????????????? | | " E &&#???????????????? | | " """ SS" "" """" &&#???????????????? | | s" "" sSS" "" &&#???????????????? | | js"" " "" "" "" &&#???????????????? | | """ " " " ###???????????????? | | """" " " #?????????????????? | | " T " #?????????????????? | | """""""""" """ #?????????????????? | | """ #?????????????????? | | """""""""" " " """"""#?????????????????? | | ##################+++###########?????????????????? | | ?????????????#"" ""#???????????????????????? | | ???????????###" "###?????????????????????? | | ???????????#"" ""#?????????????????????? | | ???????????#"" ""#?????????????????????? | | ???????????#"" ""#?????????????????????? | | ???????????#"Y Y"#?????????????????????? | | ???????????#" [ ""#?????????????????????? | | ???????????#"" [ ""#?????????????????????? | +----------------------------------------------------+ Best States ------------- Heat Dissipation 50 Energy Generation 93 Energy Capacity 1400 Matter Stores 300 Matter Capacity 300 Sight Range 24 Robot Scan Range 20 Terrain Scan Range 30 Terrain Scan Density 210 Jamming Range 22 Power Amplification 30 Additional Mass Support 12 Armor Coverage 450 Resistance: KI 30 Resistance: EM 75 Core Shielding 90 Point Defense Rating 480 Weapon Cycling 25 Melee Speed Boost 50 Phase Shifting 20 Evasion (%) 75 Targeting Accuracy 12 Melee Accuracy 14 Target Analysis 10 Core Analysis 12 Armor Integrity Analysis 50 Recoil Reduction 4 Matter Filtering 50 Particle Charging 30 Offensive Hacking 34 Authchip Count 1 Item Schematics ----------------- Adv. Signal Interpreter | -6/Factory | Hacked Core Analyzer | -6/Factory | Scanalyzed Mic. Fission Core | -6/Factory | Hacked Riot Gun | -6/Zion | Free Flamer | -6/Zion | Free Beamcaster | -6/Zion | Free Slug Cannon | -6/Zion | Free Hvy. Beamcaster | -6/Zion | Free Ripper | -6/Zion | Free Arc Thrower | -6/Zion | Free Phasing Sabre | -6/Zion | Free Nanoactuators | -5/Extension | Hacked Centrium Leg | -4/Factory | Scanalyzed Assault Drone Bay | -4/Zhirov | Free Exp. Heat Sink | -4/Zhirov | Free Exp. Optical Array | -4/Zhirov | Free Imp. Arc Thrower | -4/Zhirov | Free Robot Schematics ------------------ A-27 Freighter | -2/Testing | Archive Fabricated ------------ Adv. Signal Interpreter | x2 | -6/Factory Centrium Leg | x1 | -4/Factory | Preloaded Nanoactuators | x2 | -4/Factory | Authchip Repaired ---------- Enh. Autogun | 33% | -8/Materials Enh. Autogun | 35% | -8/Materials Exp. Sensor Array | 62% | -8/Storage Studied --------- Gravmag Array | -6/Factory | Hacked Centrium Leg | -3/Research | Hacked Quantum Reactor | -3/Research | Hacked Com. HERF Cannon | -3/Quarantine | Hacked Alien Tech Used ----------------- Core Expander Integrated Reactor Dimensional Node Initializer Subatomic Replicator Transdimensional Reconstructor Terrabomb Supercharged TR Achievements -------------- None Challenges ------------ None Game ------ Seed MagneticReactionDatajack Manual? 0 Play Time 05:03:35 Cumulative 879.4 hours Start 2026.09.22 @ 18:32:26 End 2026.09.23 @ 12:56:06 Sessions 3 Manual Loads 0 Difficulty Rogue Special Mode None Game No. 483 Rogue 483 Adventurer 0 Explorer 0 Win Type - Total 50 Types 22/5/8/2/1/2/6/2/1/1 Lore% 95 Gallery% 91 Achievement% 84 Wizard Run 0 Options --------- Layout 1 ASCII 0 Keyboard 0 Movement Numpad Keybinds 0 Fullscreen 2 Font 24/Smallcaps Map View 50x40 Zoom Use 0% Tactical HUD 1 Map Filters NONE Filters NONE Steam 1 RUN: fccf66c8-74de-418e-9427-90fe1de96484